Workbook

Sheet tabula (hidden)
C2: "Ģimeņu viktorīna" (tiešsaistē / vebinārā) | 2025.gada 22.februāris
B3: Grupa | C3: # | D3: Dalībnieks | Raunds | Tēma | E3: 1 | F3: 2 | G3: 3 | H3: 4 | I3: 5 | J3: 6 | K3: 7 | L3: 8 | M3: 9 | N3: 10 | O3: KOPĀ | P3: Laiks kopā uz pareizajām atbildēm | Q3: Pareizās atbildes (max) | R3: Vid.laiks uz 1 pareizo atb.
E4: Pavediens | F4: Ekspresis | G4: Vizuālais | H4: Burtu mīkla | I4: Ķēde | J4: Latviešu filmas no viena kadra | K4: Risks | L4: Kas kopīgs? | M4: Liekais pazūd | N4: Audio
D5: Max punkti raundā (bez bonusiem) | E5: 150 | F5: 240 | G5: 150 | H5: 162 | I5: 150 | J5: 150 | K5: 120 | L5: 180 | M5: 132 | N5: 150 | O5: =SUM(E5:N5) -> 1584
C6: Jautājumi | E6: 6 | F6: 12 | G6: 6 | H6: 6 | I6: 8 | J6: 6 | K6: 6 | L6: 8 | M6: 6 | N6: 6 | Q6: =SUM(E6:N6) -> 70
D7: Vidējie rādītāji | E7: =ROUND(AVERAGE(E8:E1050),1) -> 76.7 | F7: =ROUND(AVERAGE(F8:F1050),1) -> 130.6 | G7: 73.5 | H7: 67.5 | I7: 70.1 | J7: 88.8 | K7: 56.4 | L7: 124.4 | M7: 83.2 | N7: 79.1 | O7: 850.2 | P7: - | Q7: 48.1 | R7: -
B8: 3 | C8: 1 | D8: ROGAS | E8: 109 | F8: 182 | G8: 134 | H8: 101 | I8: 101 | J8: 136 | K8: 110 | L8: 174 | M8: 107 | N8: 135 | O8: =SUM(E8:N8) -> 1289 | P8: 05 min. 46,626 | Q8: 64 | R8: 05,416 sek.
B9: 1 | C9: 2 | D9: Matu vēji | E9: 118 | F9: 130 | G9: 128 | H9: 79 | I9: 104 | J9: 136 | K9: 78 | L9: 179 | M9: 97 | N9: 133 | O9: =SUM(E9:N9) -> 1182 | P9: 07 min. 29,249 | Q9: 62 | R9: 07,246 sek.
B10: 1 | C10: 3 | D10: Turbotēraudsprādziens | E10: 133 | F10: 144 | G10: 93 | H10: 89 | I10: 111 | J10: 132 | K10: 106 | L10: 117 | M10: 122 | N10: 107 | O10: =SUM(E10:N10) -> 1154 | P10: 07 min. 02,505 | Q10: 61 | R10: 06,926 sek.
B11: 3 | C11: 4 | D11: Vilciņi | E11: 91 | F11: 183 | G11: 111 | H11: 72 | I11: 98 | J11: 100 | K11: 101 | L11: 177 | M11: 81 | N11: 138 | O11: =SUM(E11:N11) -> 1152 | P11: 08 min. 35,430 | Q11: 63 | R11: 08,181 sek.
B12: 1 | C12: 5 | D12: Wilsons | E12: 93 | F12: 154 | G12: 96 | H12: 77 | I12: 94 | J12: 85 | K12: 97 | L12: 182 | M12: 126 | N12: 139 | O12: =SUM(E12:N12) -> 1143 | P12: 07 min. 52,415 | Q12: 62 | R12: 07,620 sek.
B13: 3 | C13: 6 | D13: Sindija DJV | E13: 92 | F13: 192 | G13: 40 | H13: 97 | I13: 113 | J13: 136 | K13: 111 | L13: 134 | M13: 87 | N13: 133 | O13: =SUM(E13:N13) -> 1135 | P13: 03 min. 48,361 | Q13: 54 | R13: 04,229 sek.
B14: 1 | C14: 7 | D14: BraveDucks | E14: 64 | F14: 162 | G14: 91 | H14: 91 | I14: 99 | J14: 112 | K14: 98 | L14: 172 | M14: 108 | N14: 136 | O14: =SUM(E14:N14) -> 1133 | P14: 06 min. 46,973 | Q14: 59 | R14: 06,898 sek.
B15: 1 | C15: 8 | D15: Čempioni_GVBM | E15: 111 | F15: 147 | G15: 121 | H15: 89 | I15: 81 | J15: 100 | K15: 100 | L15: 131 | M15: 124 | N15: 129 | O15: =SUM(E15:N15) -> 1133 | P15: 06 min. 49,195 | Q15: 59 | R15: 06,936 sek.
B16: 2 | C16: 9 | D16: LOTOS | E16: 83 | F16: 180 | G16: 112 | H16: 62 | I16: 76 | J16: 109 | K16: 85 | L16: 166 | M16: 121 | N16: 137 | O16: =SUM(E16:N16) -> 1131 | P16: 06 min. 28,938 | Q16: 59 | R16: 06,592 sek.
B17: 3 | C17: 10 | D17: PUČIGŪNI MIZĀ | E17: 90 | F17: 172 | G17: 102 | H17: 90 | I17: 82 | J17: 97 | K17: 99 | L17: 145 | M17: 108 | N17: 129 | O17: =SUM(E17:N17) -> 1114 | P17: 08 min. 08,013 | Q17: 60 | R17: 08,134 sek.
B18: 2 | C18: 11 | D18: lielmezi.lv | E18: 56 | F18: 177 | G18: 60 | H18: 83 | I18: 98 | J18: 139 | K18: 101 | L18: 152 | M18: 108 | N18: 132 | O18: =SUM(E18:N18) -> 1106 | P18: 06 min. 35,304 | Q18: 58 | R18: 06,816 sek.
B19: 2 | C19: 12 | D19: Annas iela & Co | E19: 94 | F19: 124 | G19: 122 | H19: 85 | I19: 80 | J19: 101 | K19: 85 | L19: 163 | M19: 121 | N19: 128 | O19: =SUM(E19:N19) -> 1103 | P19: 09 min. 34,606 | Q19: 63 | R19: 09,121 sek.
B20: 2 | C20: 13 | D20: EVER PUB | E20: 110 | F20: 192 | G20: 96 | H20: 109 | I20: 90 | J20: 112 | K20: 9 | L20: 160 | M20: 104 | N20: 112 | O20: =SUM(E20:N20) -> 1094 | P20: 04 min. 51,542 | Q20: 56 | R20: 05,206 sek.
B21: 3 | C21: 14 | D21: Indriķi | E21: 109 | F21: 197 | G21: 87 | H21: 79 | I21: 91 | J21: 91 | K21: 108 | L21: 118 | M21: 107 | N21: 101 | O21: =SUM(E21:N21) -> 1088 | P21: 04 min. 43,632 | Q21: 54 | R21: 05,252 sek.
B22: 1 | C22: 15 | D22: Briedīši | E22: 123 | F22: 161 | G22: 84 | H22: 103 | I22: 58 | J22: 81 | K22: 96 | L22: 177 | M22: 111 | N22: 89 | O22: =SUM(E22:N22) -> 1083 | P22: 06 min. 39,244 | Q22: 57 | R22: 07,004 sek.
B23: 3 | C23: 16 | D23: Aitu banda | E23: 123 | F23: 119 | G23: 117 | H23: 77 | I23: 95 | J23: 110 | K23: 68 | L23: 178 | M23: 86 | N23: 100 | O23: =SUM(E23:N23) -> 1073 | P23: 07 min. 06,925 | Q23: 57 | R23: 07,490 sek.
B24: 3 | C24: 17 | D24: Tagad zinu - ko nezināju! | E24: 90 | F24: 143 | G24: 73 | H24: 93 | I24: 46 | J24: 141 | K24: 108 | L24: 133 | M24: 110 | N24: 136 | O24: =SUM(E24:N24) -> 1073 | P24: 05 min. 31,229 | Q24: 55 | R24: 06,022 sek.
B25: 3 | C25: 18 | D25: Ak vai! | E25: 64 | F25: 171 | G25: 88 | H25: 92 | I25: 69 | J25: 109 | K25: 98 | L25: 170 | M25: 123 | N25: 88 | O25: =SUM(E25:N25) -> 1072 | P25: 05 min. 12,524 | Q25: 54 | R25: 05,787 sek.
B26: 1 | C26: 19 | D26: Salenieki | E26: 111 | F26: 130 | G26: 95 | H26: 83 | I26: 76 | J26: 113 | K26: 99 | L26: 123 | M26: 109 | N26: 129 | O26: =SUM(E26:N26) -> 1068 | P26: 06 min. 49,487 | Q26: 57 | R26: 07,184 sek.
B27: 1 | C27: 20 | D27: Omei dzimpuks :) | E27: 109 | F27: 127 | G27: 106 | H27: 63 | I27: 106 | J27: 122 | K27: 97 | L27: 105 | M27: 108 | N27: 124 | O27: =SUM(E27:N27) -> 1067 | P27: 08 min. 38,002 | Q27: 60 | R27: 08,633 sek.
B28: 3 | C28: 21 | D28: La familia | E28: 87 | F28: 175 | G28: 94 | H28: 76 | I28: 102 | J28: 81 | K28: 94 | L28: 116 | M28: 130 | N28: 110 | O28: =SUM(E28:N28) -> 1065 | P28: 06 min. 30,267 | Q28: 56 | R28: 06,969 sek.
C29: 22 | D29: cibiņa blice | E29: 124 | F29: 173 | G29: 100 | H29: 74 | I29: 85 | J29: 82 | K29: 65 | L29: 177 | M29: 72 | N29: 107 | O29: =SUM(E29:N29) -> 1059 | P29: 06 min. 40,709 | Q29: 56 | R29: 07,156 sek.
C30: 23 | D30: Lelde & viedie | E30: 71 | F30: 144 | G30: 85 | H30: 102 | I30: 81 | J30: 135 | K30: 87 | L30: 126 | M30: 97 | N30: 130 | O30: =SUM(E30:N30) -> 1058 | P30: 08 min. 10,067 | Q30: 59 | R30: 08,306 sek.
C31: 24 | D31: pienazupa | E31: 137 | F31: 147 | G31: 87 | H31: 84 | I31: 109 | J31: 77 | K31: 111 | L31: 129 | M31: 107 | N31: 70 | O31: =SUM(E31:N31) -> 1058 | P31: 04 min. 25,341 | Q31: 52 | R31: 05,103 sek.
C32: 25 | D32: VECIE KAPI | E32: 85 | F32: 120 | G32: 89 | H32: 67 | I32: 90 | J32: 117 | K32: 78 | L32: 160 | M32: 110 | N32: 134 | O32: =SUM(E32:N32) -> 1050 | P32: 06 min. 22,591 | Q32: 56 | R32: 06,832 sek.
C33: 26 | D33: 5G | E33: 107 | F33: 161 | G33: 85 | H33: 76 | I33: 83 | J33: 95 | K33: 102 | L33: 134 | M33: 102 | N33: 105 | O33: =SUM(E33:N33) -> 1050 | P33: 06 min. 13,850 | Q33: 55 | R33: 06,797 sek.
C34: 27 | D34: Branku Rezidence | E34: 66 | F34: 138 | G34: 90 | H34: 96 | I34: 105 | J34: 140 | K34: 29 | L34: 175 | M34: 109 | N34: 87 | O34: =SUM(E34:N34) -> 1035 | P34: 06 min. 08,942 | Q34: 55 | R34: 06,708 sek.
C35: 28 | D35: Klieši & Draugi | E35: 86 | F35: 171 | G35: 72 | H35: 88 | I35: 93 | J35: 95 | K35: 97 | L35: 145 | M35: 58 | N35: 126 | O35: =SUM(E35:N35) -> 1031 | P35: 11 min. 44,027 | Q35: 63 | R35: 11,175 sek.
C36: 29 | D36: PAKO6 | E36: 103 | F36: 126 | G36: 81 | H36: 72 | I36: 83 | J36: 126 | K36: 53 | L36: 147 | M36: 104 | N36: 136 | O36: =SUM(E36:N36) -> 1031 | P36: 08 min. 13,972 | Q36: 58 | R36: 08,517 sek.
C37: 30 | D37: Podzinieks | E37: 47 | F37: 142 | G37: 94 | H37: 87 | I37: 89 | J37: 137 | K37: 104 | L37: 133 | M37: 116 | N37: 61 | O37: =SUM(E37:N37) -> 1010 | P37: 05 min. 38,217 | Q37: 52 | R37: 06,504 sek.
C38: 31 | D38: Viktorinators3000 | E38: 77 | F38: 140 | G38: 66 | H38: 79 | I38: 64 | J38: 110 | K38: 98 | L38: 167 | M38: 124 | N38: 85 | O38: =SUM(E38:N38) -> 1010 | P38: 05 min. 50,992 | Q38: 52 | R38: 06,750 sek.
C39: 32 | D39: Kauliņi | E39: 105 | F39: 138 | G39: 95 | H39: 99 | I39: 86 | J39: 67 | K39: 97 | L39: 126 | M39: 107 | N39: 89 | O39: =SUM(E39:N39) -> 1009 | P39: 05 min. 49,789 | Q39: 52 | R39: 06,727 sek.
C40: 33 | D40: Salaspils Zīriņi | E40: 85 | F40: 166 | G40: 111 | H40: 51 | I40: 132 | J40: 68 | K40: 74 | L40: 145 | M40: 57 | N40: 118 | O40: =SUM(E40:N40) -> 1007 | P40: 06 min. 04,358 | Q40: 53 | R40: 06,875 sek.
C41: 34 | D41: Kazubrenču princeses | E41: 87 | F41: 128 | G41: 65 | H41: 90 | I41: 75 | J41: 118 | K41: 110 | L41: 109 | M41: 121 | N41: 104 | O41: =SUM(E41:N41) -> 1007 | P41: 04 min. 59,705 | Q41: 51 | R41: 05,877 sek.
C42: 35 | D42: Pirāta kūpinājumi | E42: 88 | F42: 151 | G42: 111 | H42: 85 | I42: 68 | J42: 84 | K42: 86 | L42: 159 | M42: 84 | N42: 88 | O42: =SUM(E42:N42) -> 1004 | P42: 06 min. 48,659 | Q42: 54 | R42: 07,568 sek.
C43: 36 | D43: Gangsterģimenīte | E43: 77 | F43: 132 | G43: 60 | H43: 101 | I43: 91 | J43: 95 | K43: 109 | L43: 147 | M43: 113 | N43: 79 | O43: =SUM(E43:N43) -> 1004 | P43: 06 min. 25,078 | Q43: 53 | R43: 07,266 sek.
C44: 37 | D44: BunS | E44: 63 | F44: 123 | G44: 90 | H44: 69 | I44: 87 | J44: 112 | K44: 75 | L44: 143 | M44: 118 | N44: 116 | O44: =SUM(E44:N44) -> 996 | P44: 11 min. 01,012 | Q44: 61 | R44: 10,836 sek.
C45: 38 | D45: Umpalumpas | E45: 105 | F45: 142 | G45: 103 | H45: 49 | I45: 65 | J45: 99 | K45: 97 | L45: 166 | M45: 131 | N45: 39 | O45: =SUM(E45:N45) -> 996 | P45: 05 min. 34,657 | Q45: 51 | R45: 06,562 sek.
C46: 39 | D46: Just80% | E46: 79 | F46: 121 | G46: 96 | H46: 94 | I46: 71 | J46: 98 | K46: 103 | L46: 103 | M46: 86 | N46: 141 | O46: =SUM(E46:N46) -> 992 | P46: 09 min. 39,160 | Q46: 58 | R46: 09,986 sek.
C47: 40 | D47: Skuju Ceri | E47: 86 | F47: 155 | G47: 76 | H47: 83 | I47: 84 | J47: 138 | K47: 89 | L47: 138 | M47: 57 | N47: 82 | O47: =SUM(E47:N47) -> 988 | P47: 06 min. 12,882 | Q47: 52 | R47: 07,171 sek.
C48: 41 | D48: 5xK | E48: 119 | F48: 116 | G48: 78 | H48: 54 | I48: 91 | J48: 123 | K48: 57 | L48: 155 | M48: 75 | N48: 116 | O48: =SUM(E48:N48) -> 984 | P48: 08 min. 16,388 | Q48: 56 | R48: 08,864 sek.
C49: 42 | D49: Vecie ērmi | E49: 89 | F49: 121 | G49: 60 | H49: 42 | I49: 66 | J49: 98 | K49: 94 | L49: 154 | M49: 124 | N49: 130 | O49: =SUM(E49:N49) -> 978 | P49: 06 min. 53,007 | Q49: 52 | R49: 07,942 sek.
C50: 43 | D50: Ķiegelis | E50: 45 | F50: 166 | G50: 81 | H50: 61 | I50: 67 | J50: 67 | K50: 94 | L50: 145 | M50: 123 | N50: 129 | O50: =SUM(E50:N50) -> 978 | P50: 05 min. 15,374 | Q50: 50 | R50: 06,307 sek.
C51: 44 | D51: Pitijs | E51: 112 | F51: 180 | G51: 68 | H51: 106 | I51: 44 | J51: 107 | K51: 69 | L51: 127 | M51: 117 | N51: 41 | O51: =SUM(E51:N51) -> 971 | P51: 05 min. 17,753 | Q51: 50 | R51: 06,355 sek.
C52: 45 | D52: Desu Meistari | E52: 81 | F52: 159 | G52: 34 | H52: 98 | I52: 92 | J52: 68 | K52: 51 | L52: 167 | M52: 82 | N52: 135 | O52: =SUM(E52:N52) -> 967 | P52: 05 min. 26,951 | Q52: 51 | R52: 06,411 sek.
C53: 46 | D53: Rapsis | E53: 73 | F53: 145 | G53: 65 | H53: 91 | I53: 66 | J53: 132 | K53: 81 | L53: 132 | M53: 99 | N53: 70 | O53: =SUM(E53:N53) -> 954 | P53: 09 min. 28,863 | Q53: 55 | R53: 10,343 sek.
C54: 47 | D54: Trakie Truši | E54: 29 | F54: 156 | G54: 90 | H54: 96 | I54: 92 | J54: 100 | K54: 72 | L54: 156 | M54: 129 | N54: 26 | O54: =SUM(E54:N54) -> 946 | P54: 07 min. 01,849 | Q54: 53 | R54: 07,959 sek.
C55: 48 | D55: ātrumpūķi | E55: 93 | F55: 116 | G55: 83 | H55: 94 | I55: 79 | J55: 101 | K55: 76 | L55: 112 | M55: 101 | N55: 89 | O55: =SUM(E55:N55) -> 944 | P55: 13 min. 16,913 | Q55: 62 | R55: 12,853 sek.
C56: 49 | D56: Brilles +1 | E56: 86 | F56: 114 | G56: 77 | H56: 62 | I56: 72 | J56: 109 | K56: 91 | L56: 138 | M56: 91 | N56: 104 | O56: =SUM(E56:N56) -> 944 | P56: 10 min. 03,445 | Q56: 56 | R56: 10,776 sek.
C57: 50 | D57: Bučas Māja | E57: 102 | F57: 154 | G57: 56 | H57: 92 | I57: 64 | J57: 74 | K57: 16 | L57: 156 | M57: 128 | N57: 99 | O57: =SUM(E57:N57) -> 941 | P57: 07 min. 42,103 | Q57: 53 | R57: 08,719 sek.
C58: 51 | D58: Draugiņi | E58: 84 | F58: 171 | G58: 54 | H58: 59 | I58: 63 | J58: 89 | K58: 53 | L58: 172 | M58: 78 | N58: 117 | O58: =SUM(E58:N58) -> 940 | P58: 07 min. 58,022 | Q58: 54 | R58: 08,852 sek.
C59: 52 | D59: PESKOSTYLE | E59: 87 | F59: 143 | G59: 56 | H59: 80 | I59: 95 | J59: 114 | K59: 44 | L59: 128 | M59: 92 | N59: 100 | O59: =SUM(E59:N59) -> 939 | P59: 09 min. 23,202 | Q59: 55 | R59: 10,240 sek.
C60: 53 | D60: LĪČI | E60: 106 | F60: 160 | G60: 67 | H60: 69 | I60: 62 | J60: 93 | K60: 40 | L60: 131 | M60: 84 | N60: 124 | O60: =SUM(E60:N60) -> 936 | P60: 04 min. 05,227 | Q60: 48 | R60: 05,109 sek.
C61: 54 | D61: Children of Dace | E61: 97 | F61: 136 | G61: 96 | H61: 67 | I61: 63 | J61: 103 | K61: 90 | L61: 112 | M61: 110 | N61: 61 | O61: =SUM(E61:N61) -> 935 | P61: 07 min. 30,662 | Q61: 52 | R61: 08,667 sek.
C62: 55 | D62: PutniņiCūciņas | E62: 67 | F62: 133 | G62: 85 | H62: 31 | I62: 114 | J62: 72 | K62: 74 | L62: 150 | M62: 96 | N62: 113 | O62: =SUM(E62:N62) -> 935 | P62: 03 min. 46,971 | Q62: 46 | R62: 04,934 sek.
C63: 56 | D63: KIDD | E63: 81 | F63: 134 | G63: 92 | H63: 69 | I63: 65 | J63: 109 | K63: 91 | L63: 104 | M63: 119 | N63: 69 | O63: =SUM(E63:N63) -> 933 | P63: 06 min. 59,658 | Q63: 52 | R63: 08,070 sek.
C64: 57 | D64: Līvusēta Pitragā | E64: 84 | F64: 128 | G64: 101 | H64: 73 | I64: 85 | J64: 104 | K64: 20 | L64: 133 | M64: 89 | N64: 112 | O64: =SUM(E64:N64) -> 929 | P64: 06 min. 38,388 | Q64: 51 | R64: 07,812 sek.
C65: 58 | D65: Henrijs | E65: 93 | F65: 143 | G65: 100 | H65: 59 | I65: 74 | J65: 114 | K65: 58 | L65: 137 | M65: 89 | N65: 61 | O65: =SUM(E65:N65) -> 928 | P65: 08 min. 16,743 | Q65: 55 | R65: 09,032 sek.
C66: 59 | D66: Romuls un Rema | E66: 55 | F66: 133 | G66: 88 | H66: 85 | I66: 73 | J66: 132 | K66: 73 | L66: 150 | M66: 77 | N66: 58 | O66: =SUM(E66:N66) -> 924 | P66: 08 min. 06,026 | Q66: 52 | R66: 09,347 sek.
C67: 60 | D67: Stams | E67: 77 | F67: 141 | G67: 61 | H67: 81 | I67: 60 | J67: 115 | K67: 44 | L67: 169 | M67: 98 | N67: 75 | O67: =SUM(E67:N67) -> 921 | P67: 09 min. 33,499 | Q67: 55 | R67: 10,427 sek.
C68: 61 | D68: Elksnīši un Rozīši | E68: 63 | F68: 128 | G68: 103 | H68: 98 | I68: 98 | J68: 103 | K68: 40 | L68: 108 | M68: 87 | N68: 91 | O68: =SUM(E68:N68) -> 919 | P68: 10 min. 03,952 | Q68: 56 | R68: 10,785 sek.
C69: 62 | D69: Panzera vergi | E69: 96 | F69: 161 | G69: 56 | H69: 62 | I69: 63 | J69: 88 | K69: 87 | L69: 126 | M69: 99 | N69: 81 | O69: =SUM(E69:N69) -> 919 | P69: 06 min. 40,524 | Q69: 50 | R69: 08,010 sek.
C70: 63 | D70: VINCHIKI | E70: 63 | F70: 104 | G70: 88 | H70: 52 | I70: 80 | J70: 119 | K70: 75 | L70: 141 | M70: 63 | N70: 126 | O70: =SUM(E70:N70) -> 911 | P70: 12 min. 01,413 | Q70: 60 | R70: 12,024 sek.
C71: 64 | D71: Pufenes | E71: 86 | F71: 122 | G71: 89 | H71: 78 | I71: 85 | J71: 76 | K71: 86 | L71: 66 | M71: 122 | N71: 101 | O71: =SUM(E71:N71) -> 911 | P71: 05 min. 49,949 | Q71: 48 | R71: 07,291 sek.
C72: 65 | D72: Vistiņas | E72: 75 | F72: 112 | G72: 90 | H72: 61 | I72: 95 | J72: 98 | K72: 75 | L72: 104 | M72: 64 | N72: 136 | O72: =SUM(E72:N72) -> 910 | P72: 10 min. 11,675 | Q72: 56 | R72: 10,923 sek.
C73: 66 | D73: Swan | E73: 105 | F73: 155 | G73: 56 | H73: 100 | I73: 82 | J73: 102 | K73: 38 | L73: 84 | M73: 63 | N73: 125 | O73: =SUM(E73:N73) -> 910 | P73: 08 min. 21,186 | Q73: 52 | R73: 09,638 sek.
C74: 67 | D74: Pirmā Reize | E74: 37 | F74: 163 | G74: 85 | H74: 52 | I74: 54 | J74: 112 | K74: 100 | L74: 114 | M74: 82 | N74: 105 | O74: =SUM(E74:N74) -> 904 | P74: 05 min. 46,665 | Q74: 48 | R74: 07,222 sek.
C75: 68 | D75: Morgana | E75: 65 | F75: 147 | G75: 106 | H75: 79 | I75: 80 | J75: 27 | K75: 52 | L75: 110 | M75: 99 | N75: 133 | O75: =SUM(E75:N75) -> 898 | P75: 08 min. 11,723 | Q75: 53 | R75: 09,278 sek.
C76: 69 | D76: Vitrupe | E76: 101 | F76: 136 | G76: 58 | H76: 59 | I76: 71 | J76: 116 | K76: 104 | L76: 116 | M76: 72 | N76: 65 | O76: =SUM(E76:N76) -> 898 | P76: 07 min. 29,768 | Q76: 51 | R76: 08,819 sek.
C77: 70 | D77: Maģiskais vienradzis1 | E77: 99 | F77: 127 | G77: 93 | H77: 38 | I77: 59 | J77: 49 | K77: 48 | L77: 129 | M77: 121 | N77: 130 | O77: =SUM(E77:N77) -> 893 | P77: 09 min. 07,141 | Q77: 53 | R77: 10,323 sek.
C78: 71 | D78: Krasavčiki | E78: 83 | F78: 87 | G78: 87 | H78: 57 | I78: 70 | J78: 107 | K78: 70 | L78: 153 | M78: 49 | N78: 128 | O78: =SUM(E78:N78) -> 891 | P78: 08 min. 47,288 | Q78: 52 | R78: 10,140 sek.
C79: 72 | D79: Stipra rumkola | E79: 88 | F79: 115 | G79: 85 | H79: 56 | I79: 65 | J79: 96 | K79: 86 | L79: 148 | M79: 116 | N79: 29 | O79: =SUM(E79:N79) -> 884 | P79: 08 min. 14,463 | Q79: 51 | R79: 09,695 sek.
C80: 73 | D80: Stirninieki | E80: 78 | F80: 144 | G80: 79 | H80: 90 | I80: 80 | J80: 93 | K80: 35 | L80: 146 | M80: 102 | N80: 36 | O80: =SUM(E80:N80) -> 883 | P80: 09 min. 15,258 | Q80: 53 | R80: 10,477 sek.
C81: 74 | D81: Salacas Banāni | E81: 57 | F81: 172 | G81: 76 | H81: 90 | I81: 68 | J81: 132 | K81: -13 | L81: 157 | M81: 98 | N81: 46 | O81: =SUM(E81:N81) -> 883 | P81: 05 min. 52,655 | Q81: 49 | R81: 07,197 sek.
C82: 75 | D82: roshuks | E82: 61 | F82: 139 | G82: 110 | H82: 57 | I82: 70 | J82: 43 | K82: 20 | L82: 140 | M82: 114 | N82: 125 | O82: =SUM(E82:N82) -> 879 | P82: 10 min. 03,620 | Q82: 54 | R82: 11,178 sek.
C83: 76 | D83: Kociņi | E83: 89 | F83: 119 | G83: 76 | H83: 63 | I83: 70 | J83: 62 | K83: 81 | L83: 104 | M83: 82 | N83: 123 | O83: =SUM(E83:N83) -> 869 | P83: 11 min. 29,509 | Q83: 57 | R83: 12,097 sek.
C84: 77 | D84: Runcis-pilns-puncis | E84: 99 | F84: 143 | G84: 76 | H84: 56 | I84: 61 | J84: 120 | K84: 48 | L84: 133 | M84: 108 | N84: 22 | O84: =SUM(E84:N84) -> 866 | P84: 07 min. 18,473 | Q84: 50 | R84: 08,769 sek.
C85: 78 | D85: KISS-D | E85: 53 | F85: 116 | G85: 77 | H85: 82 | I85: 63 | J85: 115 | K85: 6 | L85: 121 | M85: 103 | N85: 125 | O85: =SUM(E85:N85) -> 861 | P85: 07 min. 35,690 | Q85: 50 | R85: 09,114 sek.
C86: 79 | D86: Plakanciema vafelītes | E86: 34 | F86: 104 | G86: 82 | H86: 72 | I86: 96 | J86: 88 | K86: 83 | L86: 99 | M86: 67 | N86: 133 | O86: =SUM(E86:N86) -> 858 | P86: 06 min. 03,561 | Q86: 47 | R86: 07,735 sek.
C87: 80 | D87: Pierīgas Kalniņi | E87: 11 | F87: 201 | G87: 68 | H87: 79 | I87: 76 | J87: 83 | K87: 103 | L87: 147 | M87: 72 | N87: 18 | O87: =SUM(E87:N87) -> 858 | P87: 05 min. 04,667 | Q87: 46 | R87: 06,623 sek.
C88: 81 | D88: DRAUGI,RADI UN ROSOLS | E88: 79 | F88: 154 | G88: 95 | H88: 69 | I88: 60 | J88: 80 | K88: 57 | L88: 150 | M88: 39 | N88: 73 | O88: =SUM(E88:N88) -> 856 | P88: 07 min. 15,685 | Q88: 48 | R88: 09,077 sek.
C89: 82 | D89: RODENPOIS | E89: 68 | F89: 101 | G89: 87 | H89: 42 | I89: 77 | J89: 112 | K89: 2 | L89: 140 | M89: 90 | N89: 135 | O89: =SUM(E89:N89) -> 854 | P89: 06 min. 46,637 | Q89: 48 | R89: 08,472 sek.
C90: 83 | D90: Sanāca | E90: 32 | F90: 100 | G90: 102 | H90: 88 | I90: 77 | J90: 108 | K90: 11 | L90: 104 | M90: 124 | N90: 102 | O90: =SUM(E90:N90) -> 848 | P90: 06 min. 23,753 | Q90: 48 | R90: 07,995 sek.
C91: 84 | D91: VētrasPutns | E91: 97 | F91: 149 | G91: 104 | H91: 71 | I91: 81 | J91: 105 | K91: 84 | L91: 102 | M91: 40 | N91: 12 | O91: =SUM(E91:N91) -> 845 | P91: 07 min. 49,743 | Q91: 49 | R91: 09,587 sek.
C92: 85 | D92: Two of a kind | E92: 109 | F92: 79 | G92: 81 | H92: 55 | I92: 65 | J92: 91 | K92: 2 | L92: 122 | M92: 109 | N92: 132 | O92: =SUM(E92:N92) -> 845 | P92: 07 min. 14,747 | Q92: 48 | R92: 09,057 sek.
C93: 86 | D93: GUNTIS KULAKĀ RĀVIS | E93: 66 | F93: 164 | G93: 65 | H93: 82 | I93: 46 | J93: 65 | K93: 80 | L93: 158 | M93: 66 | N93: 52 | O93: =SUM(E93:N93) -> 844 | P93: 05 min. 51,634 | Q93: 46 | R93: 07,644 sek.
C94: 87 | D94: Baltimoni | E94: 100 | F94: 142 | G94: 73 | H94: 76 | I94: 63 | J94: 54 | K94: 44 | L94: 126 | M94: 102 | N94: 58 | O94: =SUM(E94:N94) -> 838 | P94: 08 min. 00,206 | Q94: 50 | R94: 09,604 sek.
C95: 88 | D95: Gatiņa dienasgrāmata | E95: 99 | F95: 142 | G95: 46 | H95: 81 | I95: 46 | J95: 133 | K95: -9 | L95: 170 | M95: 93 | N95: 37 | O95: =SUM(E95:N95) -> 838 | P95: 05 min. 53,684 | Q95: 46 | R95: 07,689 sek.
C96: 89 | D96: Rieksti2 | E96: 72 | F96: 123 | G96: 42 | H96: 50 | I96: 99 | J96: 81 | K96: 98 | L96: 139 | M96: 83 | N96: 50 | O96: =SUM(E96:N96) -> 837 | P96: 06 min. 25,446 | Q96: 46 | R96: 08,379 sek.
C97: 90 | D97: Kristaps | E97: 107 | F97: 150 | G97: 43 | H97: 51 | I97: 77 | J97: 83 | K97: 36 | L97: 73 | M97: 102 | N97: 113 | O97: =SUM(E97:N97) -> 835 | P97: 08 min. 17,047 | Q97: 51 | R97: 09,746 sek.
C98: 91 | D98: BĀZES FAMILY | E98: 94 | F98: 84 | G98: 58 | H98: 67 | I98: 72 | J98: 41 | K98: 71 | L98: 142 | M98: 71 | N98: 133 | O98: =SUM(E98:N98) -> 833 | P98: 08 min. 09,051 | Q98: 49 | R98: 09,981 sek.
C99: 92 | D99: INŽENIERI | E99: 75 | F99: 115 | G99: 56 | H99: 56 | I99: 80 | J99: 107 | K99: 84 | L99: 129 | M99: 81 | N99: 42 | O99: =SUM(E99:N99) -> 825 | P99: 06 min. 23,760 | Q99: 46 | R99: 08,343 sek.
C100: 93 | D100: Valmieras Straume ‍⬛ | E100: 84 | F100: 95 | G100: 113 | H100: 51 | I100: 66 | J100: 113 | K100: 7 | L100: 137 | M100: 112 | N100: 41 | O100: =SUM(E100:N100) -> 819 | P100: 06 min. 39,513 | Q100: 46 | R100: 08,685 sek.
C101: 94 | D101: Labākās | E101: 47 | F101: 147 | G101: 82 | H101: 66 | I101: 65 | J101: 111 | K101: 75 | L101: 70 | M101: 65 | N101: 90 | O101: =SUM(E101:N101) -> 818 | P101: 09 min. 14,548 | Q101: 50 | R101: 11,091 sek.
C102: 95 | D102: Terase | E102: 54 | F102: 100 | G102: 85 | H102: 87 | I102: 69 | J102: 93 | K102: 8 | L102: 100 | M102: 82 | N102: 137 | O102: =SUM(E102:N102) -> 815 | P102: 09 min. 35,254 | Q102: 51 | R102: 11,279 sek.
C103: 96 | D103: Smilšu ielas samuraji | E103: 105 | F103: 92 | G103: 22 | H103: 68 | I103: 96 | J103: 104 | K103: 0 | L103: 156 | M103: 40 | N103: 132 | O103: =SUM(E103:N103) -> 815 | P103: 06 min. 48,956 | Q103: 45 | R103: 09,088 sek.
C104: 97 | D104: MOPŠI&CO | E104: 44 | F104: 88 | G104: 98 | H104: 66 | I104: 70 | J104: 61 | K104: 56 | L104: 111 | M104: 97 | N104: 122 | O104: =SUM(E104:N104) -> 813 | P104: 09 min. 51,859 | Q104: 51 | R104: 11,605 sek.
C105: 98 | D105: Yuki | E105: 53 | F105: 174 | G105: 59 | H105: 67 | I105: 63 | J105: 71 | K105: 30 | L105: 148 | M105: 123 | N105: 25 | O105: =SUM(E105:N105) -> 813 | P105: 08 min. 01,440 | Q105: 48 | R105: 10,030 sek.
C106: 99 | D106: Viesis | E106: 111 | F106: 171 | G106: 34 | H106: 87 | I106: 87 | J106: 96 | K106: -11 | L106: 187 | M106: 44 | N106: 0 | O106: =SUM(E106:N106) -> 806 | P106: 04 min. 26,826 | Q106: 43 | R106: 06,205 sek.
C107: 100 | D107: Kristofers X & Aurēlijas ģimene | E107: 71 | F107: 103 | G107: 72 | H107: 74 | I107: 45 | J107: 72 | K107: 48 | L107: 150 | M107: 77 | N107: 86 | O107: =SUM(E107:N107) -> 798 | P107: 08 min. 44,877 | Q107: 49 | R107: 10,712 sek.
C108: 101 | D108: ŽizaPrū | E108: 55 | F108: 152 | G108: 55 | H108: 87 | I108: 86 | J108: 42 | K108: 100 | L108: 126 | M108: 59 | N108: 33 | O108: =SUM(E108:N108) -> 795 | P108: 05 min. 46,944 | Q108: 44 | R108: 07,885 sek.
C109: 102 | D109: Hugo | E109: 41 | F109: 142 | G109: 43 | H109: 69 | I109: 68 | J109: 109 | K109: 6 | L109: 114 | M109: 72 | N109: 124 | O109: =SUM(E109:N109) -> 788 | P109: 04 min. 07,942 | Q109: 41 | R109: 06,047 sek.
C110: 103 | D110: Andris un divi Voltēri | E110: 80 | F110: 0 | G110: 70 | H110: 83 | I110: 93 | J110: 79 | K110: -10 | L110: 190 | M110: 112 | N110: 87 | O110: =SUM(E110:N110) -> 784 | P110: 06 min. 31,819 | Q110: 43 | R110: 09,112 sek.
C111: 104 | D111: Smilšu rukši | E111: 92 | F111: 143 | G111: 30 | H111: 79 | I111: 60 | J111: 77 | K111: 30 | L111: 120 | M111: 73 | N111: 77 | O111: =SUM(E111:N111) -> 781 | P111: 08 min. 51,824 | Q111: 48 | R111: 11,080 sek.
C112: 105 | D112: Inspektors KAPIBARA | E112: 0 | F112: 0 | G112: 48 | H112: 94 | I112: 83 | J112: 122 | K112: 32 | L112: 168 | M112: 121 | N112: 110 | O112: =SUM(E112:N112) -> 778 | P112: 07 min. 12,029 | Q112: 43 | R112: 10,047 sek.
C113: 106 | D113: AlmaDJV | E113: 87 | F113: 120 | G113: 49 | H113: 80 | I113: 45 | J113: 128 | K113: 29 | L113: 102 | M113: 68 | N113: 66 | O113: =SUM(E113:N113) -> 774 | P113: 06 min. 49,337 | Q113: 45 | R113: 09,096 sek.
C114: 107 | D114: Opelti | E114: 65 | F114: 122 | G114: 73 | H114: 67 | I114: 64 | J114: 45 | K114: 70 | L114: 105 | M114: 78 | N114: 84 | O114: =SUM(E114:N114) -> 773 | P114: 06 min. 51,063 | Q114: 44 | R114: 09,342 sek.
C115: 108 | D115: Ruma Šķiņķis | E115: 110 | F115: 148 | G115: 89 | H115: 59 | I115: 45 | J115: 54 | K115: 109 | L115: 86 | M115: 54 | N115: 13 | O115: =SUM(E115:N115) -> 767 | P115: 04 min. 05,980 | Q115: 40 | R115: 06,150 sek.
C116: 109 | D116: Barakudas | E116: 67 | F116: 117 | G116: 53 | H116: 91 | I116: 89 | J116: 64 | K116: 51 | L116: 120 | M116: 52 | N116: 62 | O116: =SUM(E116:N116) -> 766 | P116: 08 min. 20,018 | Q116: 46 | R116: 10,870 sek.
C117: 110 | D117: LBG | E117: 68 | F117: 94 | G117: 74 | H117: 46 | I117: 80 | J117: 108 | K117: 51 | L117: 145 | M117: 90 | N117: 6 | O117: =SUM(E117:N117) -> 762 | P117: 09 min. 13,688 | Q117: 47 | R117: 11,781 sek.
C118: 111 | D118: CORBY LATVIESI | E118: 73 | F118: 109 | G118: 123 | H118: 72 | I118: 65 | J118: 66 | K118: 49 | L118: 114 | M118: 62 | N118: 28 | O118: =SUM(E118:N118) -> 761 | P118: 06 min. 10,501 | Q118: 42 | R118: 08,821 sek.
C119: 112 | D119: Roņi | E119: 73 | F119: 98 | G119: 78 | H119: 44 | I119: 43 | J119: 42 | K119: 91 | L119: 91 | M119: 66 | N119: 129 | O119: =SUM(E119:N119) -> 755 | P119: 06 min. 41,633 | Q119: 43 | R119: 09,340 sek.
C120: 113 | D120: Vecie āži | E120: 49 | F120: 132 | G120: 56 | H120: 50 | I120: 64 | J120: 102 | K120: -12 | L120: 143 | M120: 70 | N120: 97 | O120: =SUM(E120:N120) -> 751 | P120: 06 min. 42,704 | Q120: 44 | R120: 09,152 sek.
C121: 114 | D121: Ģimenīte | E121: 62 | F121: 137 | G121: 44 | H121: 44 | I121: 50 | J121: 82 | K121: 69 | L121: 132 | M121: 96 | N121: 34 | O121: =SUM(E121:N121) -> 750 | P121: 07 min. 49,490 | Q121: 45 | R121: 10,433 sek.
C122: 115 | D122: RATATUJII | E122: 65 | F122: 115 | G122: 61 | H122: 33 | I122: 50 | J122: 121 | K122: 62 | L122: 120 | M122: 97 | N122: 24 | O122: =SUM(E122:N122) -> 748 | P122: 08 min. 30,788 | Q122: 48 | R122: 10,641 sek.
C123: 116 | D123: ORHIDEJAS | E123: 62 | F123: 107 | G123: 106 | H123: 39 | I123: 50 | J123: 68 | K123: 54 | L123: 72 | M123: 63 | N123: 124 | O123: =SUM(E123:N123) -> 745 | P123: 08 min. 19,041 | Q123: 46 | R123: 10,849 sek.
C124: 117 | D124: Stepin | E124: 48 | F124: 96 | G124: 67 | H124: 57 | I124: 73 | J124: 72 | K124: 62 | L124: 160 | M124: 26 | N124: 80 | O124: =SUM(E124:N124) -> 741 | P124: 08 min. 17,344 | Q124: 45 | R124: 11,052 sek.
C125: 118 | D125: Tiltakalni | E125: 48 | F125: 128 | G125: 60 | H125: 41 | I125: 60 | J125: 61 | K125: 23 | L125: 139 | M125: 55 | N125: 126 | O125: =SUM(E125:N125) -> 741 | P125: 08 min. 40,651 | Q125: 45 | R125: 11,570 sek.
C126: 119 | D126: Madeira | E126: 41 | F126: 112 | G126: 69 | H126: 61 | I126: 72 | J126: 98 | K126: 11 | L126: 82 | M126: 70 | N126: 124 | O126: =SUM(E126:N126) -> 740 | P126: 06 min. 54,144 | Q126: 43 | R126: 09,631 sek.
C127: 120 | D127: Virķēni | E127: 73 | F127: 124 | G127: 56 | H127: 80 | I127: 43 | J127: 63 | K127: 45 | L127: 151 | M127: 84 | N127: 20 | O127: =SUM(E127:N127) -> 739 | P127: 04 min. 39,977 | Q127: 40 | R127: 06,999 sek.
C128: 121 | D128: Ozoputni | E128: 54 | F128: 149 | G128: 35 | H128: 81 | I128: 84 | J128: 106 | K128: -26 | L128: 135 | M128: 71 | N128: 45 | O128: =SUM(E128:N128) -> 734 | P128: 07 min. 10,167 | Q128: 44 | R128: 09,777 sek.
C129: 122 | D129: Siera Kraukšķi | E129: 93 | F129: 111 | G129: 89 | H129: 43 | I129: 62 | J129: 79 | K129: 69 | L129: 83 | M129: 62 | N129: 43 | O129: =SUM(E129:N129) -> 734 | P129: 06 min. 53,070 | Q129: 44 | R129: 09,388 sek.
C130: 123 | D130: Pernavas iela | E130: 75 | F130: 132 | G130: 76 | H130: 88 | I130: 59 | J130: 54 | K130: 40 | L130: 103 | M130: 83 | N130: 23 | O130: =SUM(E130:N130) -> 733 | P130: 09 min. 44,773 | Q130: 49 | R130: 11,934 sek.
C131: 124 | D131: Adrija | E131: 66 | F131: 107 | G131: 64 | H131: 54 | I131: 63 | J131: 92 | K131: 16 | L131: 106 | M131: 69 | N131: 90 | O131: =SUM(E131:N131) -> 727 | P131: 04 min. 38,434 | Q131: 39 | R131: 07,139 sek.
C132: 125 | D132: Pilates | E132: 59 | F132: 91 | G132: 75 | H132: 77 | I132: 42 | J132: 81 | K132: 96 | L132: 87 | M132: 53 | N132: 62 | O132: =SUM(E132:N132) -> 723 | P132: 06 min. 06,509 | Q132: 41 | R132: 08,939 sek.
C133: 126 | D133: FLINSTONU ĢIMENE & TAPS AUTO | E133: 72 | F133: 116 | G133: 60 | H133: 46 | I133: 54 | J133: 66 | K133: 69 | L133: 113 | M133: 78 | N133: 46 | O133: =SUM(E133:N133) -> 720 | P133: 08 min. 15,096 | Q133: 44 | R133: 11,252 sek.
C134: 127 | D134: DDKAI | E134: 66 | F134: 132 | G134: 76 | H134: 35 | I134: 79 | J134: 66 | K134: -16 | L134: 115 | M134: 80 | N134: 87 | O134: =SUM(E134:N134) -> 720 | P134: 06 min. 33,091 | Q134: 43 | R134: 09,142 sek.
C135: 128 | D135: Gorillaz | E135: 70 | F135: 120 | G135: 19 | H135: 72 | I135: 46 | J135: 93 | K135: 64 | L135: 81 | M135: 99 | N135: 55 | O135: =SUM(E135:N135) -> 719 | P135: 06 min. 25,127 | Q135: 43 | R135: 08,956 sek.
C136: 129 | D136: Krūmiņi | E136: 56 | F136: 124 | G136: 41 | H136: 59 | I136: 73 | J136: 62 | K136: 60 | L136: 131 | M136: 23 | N136: 78 | O136: =SUM(E136:N136) -> 707 | P136: 07 min. 05,711 | Q136: 43 | R136: 09,900 sek.
C137: 130 | D137: Ozolu gatve | E137: 37 | F137: 138 | G137: 42 | H137: 57 | I137: 62 | J137: 83 | K137: 107 | L137: 100 | M137: 54 | N137: 23 | O137: =SUM(E137:N137) -> 703 | P137: 05 min. 30,103 | Q137: 40 | R137: 08,253 sek.
C138: 131 | D138: SMUKIE | E138: 59 | F138: 162 | G138: 87 | H138: 37 | I138: 57 | J138: 98 | K138: 47 | L138: 107 | M138: 28 | N138: 21 | O138: =SUM(E138:N138) -> 703 | P138: 04 min. 23,828 | Q138: 38 | R138: 06,943 sek.
C139: 132 | D139: TingalTangel | E139: 79 | F139: 135 | G139: 58 | H139: 33 | I139: 55 | J139: 104 | K139: 75 | L139: 68 | M139: 71 | N139: 21 | O139: =SUM(E139:N139) -> 699 | P139: 04 min. 53,854 | Q139: 39 | R139: 07,535 sek.
C140: 133 | D140: Liepājas menciņi | E140: 94 | F140: 92 | G140: 62 | H140: 30 | I140: 80 | J140: 85 | K140: -21 | L140: 127 | M140: 124 | N140: 7 | O140: =SUM(E140:N140) -> 680 | P140: 06 min. 52,244 | Q140: 42 | R140: 09,815 sek.
C141: 134 | D141: pepsi's ir | E141: 94 | F141: 107 | G141: 44 | H141: 55 | I141: 66 | J141: 127 | K141: 32 | L141: 83 | M141: 45 | N141: 20 | O141: =SUM(E141:N141) -> 673 | P141: 09 min. 13,063 | Q141: 44 | R141: 12,570 sek.
C142: 135 | D142: Maija | E142: 81 | F142: 107 | G142: 71 | H142: 88 | I142: 23 | J142: 70 | K142: -27 | L142: 91 | M142: 129 | N142: 38 | O142: =SUM(E142:N142) -> 671 | P142: 03 min. 11,495 | Q142: 36 | R142: 05,319 sek.
C143: 136 | D143: Sabotieri | E143: 83 | F143: 88 | G143: 87 | H143: 59 | I143: 40 | J143: 61 | K143: 41 | L143: 91 | M143: 60 | N143: 46 | O143: =SUM(E143:N143) -> 656 | P143: 08 min. 18,076 | Q143: 43 | R143: 11,583 sek.
C144: 137 | D144: marinētie gurķīši | E144: 48 | F144: 124 | G144: 45 | H144: 58 | I144: 59 | J144: 74 | K144: 70 | L144: 115 | M144: 63 | N144: 0 | O144: =SUM(E144:N144) -> 656 | P144: 06 min. 32,477 | Q144: 39 | R144: 10,064 sek.
C145: 138 | D145: janisvalm | E145: 100 | F145: 146 | G145: 65 | H145: 73 | I145: 61 | J145: 89 | K145: -92 | L145: 143 | M145: 35 | N145: 22 | O145: =SUM(E145:N145) -> 642 | P145: 03 min. 17,694 | Q145: 36 | R145: 05,492 sek.
C146: 139 | D146: Dzintaram55! | E146: 102 | F146: 103 | G146: 87 | H146: 53 | I146: 42 | J146: 97 | K146: 9 | L146: 133 | M146: 15 | N146: 0 | O146: =SUM(E146:N146) -> 641 | P146: 06 min. 36,772 | Q146: 39 | R146: 10,174 sek.
C147: 140 | D147: Gulbji Gulbenē | E147: 30 | F147: 61 | G147: 59 | H147: 35 | I147: 32 | J147: 55 | K147: 80 | L147: 104 | M147: 88 | N147: 81 | O147: =SUM(E147:N147) -> 625 | P147: 11 min. 30,943 | Q147: 45 | R147: 14,526 sek.
C148: 141 | D148: Sardīnes | E148: 41 | F148: 97 | G148: 76 | H148: 19 | I148: 40 | J148: 91 | K148: 54 | L148: 108 | M148: 69 | N148: 25 | O148: =SUM(E148:N148) -> 620 | P148: 07 min. 19,725 | Q148: 39 | R148: 11,275 sek.
C149: 142 | D149: Cip-cip-cālīši | E149: 55 | F149: 110 | G149: 39 | H149: 88 | I149: 46 | J149: 65 | K149: -19 | L149: 123 | M149: 49 | N149: 50 | O149: =SUM(E149:N149) -> 606 | P149: 06 min. 33,490 | Q149: 38 | R149: 10,355 sek.
C150: 143 | D150: Asaris | E150: 40 | F150: 100 | G150: 58 | H150: 58 | I150: 66 | J150: 71 | K150: 92 | L150: 121 | M150: 0 | N150: 0 | O150: =SUM(E150:N150) -> 606 | P150: 06 min. 02,958 | Q150: 36 | R150: 10,082 sek.
C151: 144 | D151: Vēja Pilsētas Prāti | E151: 59 | F151: 94 | G151: 20 | H151: 0 | I151: 43 | J151: 79 | K151: 37 | L151: 126 | M151: 84 | N151: 45 | O151: =SUM(E151:N151) -> 587 | P151: 06 min. 05,283 | Q151: 36 | R151: 10,147 sek.
C152: 145 | D152: Pilskalni | E152: 72 | F152: 158 | G152: 21 | H152: 0 | I152: 0 | J152: 62 | K152: -1 | L152: 138 | M152: 103 | N152: 34 | O152: =SUM(E152:N152) -> 587 | P152: 04 min. 51,467 | Q152: 35 | R152: 07,446 sek.
C153: 146 | D153: GaraisGads | E153: 83 | F153: 169 | G153: 117 | H153: 82 | I153: 107 | J153: 41 | K153: -28 | L153: 0 | M153: 0 | N153: 0 | O153: =SUM(E153:N153) -> 571 | P153: 04 min. 19,718 | Q153: 33 | R153: 07,870 sek.
C154: 147 | D154: Svimpīši@mežiņas | E154: 80 | F154: 133 | G154: 40 | H154: 53 | I154: 47 | J154: 44 | K154: -4 | L154: 105 | M154: 17 | N154: 51 | O154: =SUM(E154:N154) -> 566 | P154: 10 min. 09,176 | Q154: 41 | R154: 14,858 sek.
C155: 148 | D155: Too Hot To Win | E155: 0 | F155: 85 | G155: 0 | H155: 0 | I155: 0 | J155: 30 | K155: 103 | L155: 117 | M155: 109 | N155: 108 | O155: =SUM(E155:N155) -> 552 | P155: 03 min. 35,258 | Q155: 30 | R155: 07,175 sek.
C156: 149 | D156: Agnese | E156: 78 | F156: 106 | G156: 32 | H156: 53 | I156: 41 | J156: 63 | K156: -28 | L156: 86 | M156: 81 | N156: 12 | O156: =SUM(E156:N156) -> 524 | P156: 03 min. 39,666 | Q156: 31 | R156: 07,086 sek.
C157: 150 | D157: Acālija | E157: 22 | F157: 141 | G157: 65 | H157: 77 | I157: 47 | J157: 0 | K157: 48 | L157: 38 | M157: 62 | N157: 21 | O157: =SUM(E157:N157) -> 521 | P157: 06 min. 04,518 | Q157: 33 | R157: 11,046 sek.
C158: 151 | D158: Sestdieņi | E158: 36 | F158: 0 | G158: 38 | H158: 36 | I158: 68 | J158: 63 | K158: 60 | L158: 109 | M158: 42 | N158: 68 | O158: =SUM(E158:N158) -> 520 | P158: 05 min. 31,260 | Q158: 30 | R158: 11,042 sek.
C159: 152 | D159: Džunāri | E159: 100 | F159: 172 | G159: 97 | H159: 52 | I159: 68 | J159: 42 | K159: -24 | L159: 0 | M159: 0 | N159: 0 | O159: =SUM(E159:N159) -> 507 | P159: 03 min. 53,350 | Q159: 30 | R159: 07,778 sek.
C160: 153 | D160: Gurmani | E160: 58 | F160: 114 | G160: 9 | H160: 34 | I160: 38 | J160: 52 | K160: 11 | L160: 68 | M160: 51 | N160: 12 | O160: =SUM(E160:N160) -> 447 | P160: 07 min. 07,525 | Q160: 33 | R160: 12,955 sek.
C161: 154 | D161: Virsskaņas alus iznīcinātājs | E161: 41 | F161: 118 | G161: 66 | H161: 98 | I161: 92 | J161: 0 | K161: 0 | L161: 0 | M161: 0 | N161: 0 | O161: =SUM(E161:N161) -> 415 | P161: 02 min. 51,644 | Q161: 23 | R161: 07,463 sek.
C162: 155 | D162: Smilgāji | E162: 95 | F162: 135 | G162: 56 | H162: 0 | I162: 0 | J162: 0 | K162: 73 | L162: 0 | M162: 0 | N162: 0 | O162: =SUM(E162:N162) -> 359 | P162: 02 min. 11,986 | Q162: 21 | R162: 06,285 sek.
C163: 156 | D163: Sigma | E163: 100 | F163: 87 | G163: 0 | H163: 0 | I163: 0 | J163: 0 | K163: 0 | L163: 0 | M163: 0 | N163: 0 | O163: =SUM(E163:N163) -> 187 | P163: 02 min. 09,174 | Q163: 13 | R163: 09,936 sek.
C164: 157 | D164: Ēzelis | E164: 0 | F164: 40 | G164: 0 | H164: 0 | I164: 0 | J164: 22 | K164: -33 | L164: 0 | M164: 0 | N164: 0 | O164: =SUM(E164:N164) -> 29 | P164: 00 min. 24,403 | Q164: 4 | R164: 06,101 sek.

Sheet 1-50
C2: =tabula!C2 -> "Ģimeņu viktorīna" (tiešsaistē / vebinārā) | 2025.gada 22.februāris
B3: Grupa | C3: # | D3: Dalībnieks | Raunds | Tēma | E3: 1 | F3: 2 | G3: 3 | H3: 4 | I3: 5 | J3: 6 | K3: 7 | L3: 8 | M3: 9 | N3: 10 | O3: KOPĀ | P3: Laiks kopā uz pareizajām atbildēm | Q3: Pareizās atbildes (max) | R3: Vid.laiks uz 1 pareizo atb.
E4: =tabula!E4 -> Pavediens | F4: =tabula!F4 -> Ekspresis | G4: =tabula!G4 -> Vizuālais | H4: =tabula!H4 -> Burtu mīkla | I4: =tabula!I4 -> Ķēde | J4: =tabula!J4 -> Latviešu filmas no viena kadra | K4: =tabula!K4 -> Risks | L4: =tabula!L4 -> Kas kopīgs? | M4: =tabula!M4 -> Liekais pazūd | N4: =tabula!N4 -> Audio
D5: Max punkti raundā (bez bonusiem) | E5: =tabula!E5 -> 150 | F5: =tabula!F5 -> 240 | G5: =tabula!G5 -> 150 | H5: =tabula!H5 -> 162 | I5: =tabula!I5 -> 150 | J5: =tabula!J5 -> 150 | K5: =tabula!K5 -> 120 | L5: =tabula!L5 -> 180 | M5: =tabula!M5 -> 132 | N5: =tabula!N5 -> 150 | O5: =SUM(E5:N5) -> 1584
C6: Jautājumi | E6: =tabula!E6 -> 6 | F6: =tabula!F6 -> 12 | G6: =tabula!G6 -> 6 | H6: =tabula!H6 -> 6 | I6: =tabula!I6 -> 8 | J6: =tabula!J6 -> 6 | K6: =tabula!K6 -> 6 | L6: =tabula!L6 -> 8 | M6: =tabula!M6 -> 6 | N6: =tabula!N6 -> 6 | Q6: =SUM(E6:N6) -> 70
D7: Vidējie rādītāji | E7: =tabula!E7 -> 76.7 | F7: =tabula!F7 -> 130.6 | G7: =tabula!G7 -> 73.5 | H7: =tabula!H7 -> 67.5 | I7: =tabula!I7 -> 70.1 | J7: =tabula!J7 -> 88.8 | K7: =tabula!K7 -> 56.4 | L7: =tabula!L7 -> 124.4 | M7: =tabula!M7 -> 83.2 | N7: =tabula!N7 -> 79.1 | O7: =tabula!O7 -> 850.2 | P7: =tabula!P7 -> - | Q7: =tabula!Q7 -> 48.1 | R7: =tabula!R7 -> -
B8: 3 | C8: =tabula!C8 -> 1 | D8: =tabula!D8 -> ROGAS | E8: =tabula!E8 -> 109 | F8: =tabula!F8 -> 182 | G8: =tabula!G8 -> 134 | H8: =tabula!H8 -> 101 | I8: =tabula!I8 -> 101 | J8: =tabula!J8 -> 136 | K8: =tabula!K8 -> 110 | L8: =tabula!L8 -> 174 | M8: =tabula!M8 -> 107 | N8: =tabula!N8 -> 135 | O8: =tabula!O8 -> 1289 | P8: =tabula!P8 -> 05 min. 46,626 | Q8: =tabula!Q8 -> 64 | R8: =tabula!R8 -> 05,416 sek.
B9: 1 | C9: =tabula!C9 -> 2 | D9: =tabula!D9 -> Matu vēji | E9: =tabula!E9 -> 118 | F9: =tabula!F9 -> 130 | G9: =tabula!G9 -> 128 | H9: =tabula!H9 -> 79 | I9: =tabula!I9 -> 104 | J9: =tabula!J9 -> 136 | K9: =tabula!K9 -> 78 | L9: =tabula!L9 -> 179 | M9: =tabula!M9 -> 97 | N9: =tabula!N9 -> 133 | O9: =tabula!O9 -> 1182 | P9: =tabula!P9 -> 07 min. 29,249 | Q9: =tabula!Q9 -> 62 | R9: =tabula!R9 -> 07,246 sek.
B10: 1 | C10: =tabula!C10 -> 3 | D10: =tabula!D10 -> Turbotēraudsprādziens | E10: =tabula!E10 -> 133 | F10: =tabula!F10 -> 144 | G10: =tabula!G10 -> 93 | H10: =tabula!H10 -> 89 | I10: =tabula!I10 -> 111 | J10: =tabula!J10 -> 132 | K10: =tabula!K10 -> 106 | L10: =tabula!L10 -> 117 | M10: =tabula!M10 -> 122 | N10: =tabula!N10 -> 107 | O10: =tabula!O10 -> 1154 | P10: =tabula!P10 -> 07 min. 02,505 | Q10: =tabula!Q10 -> 61 | R10: =tabula!R10 -> 06,926 sek.
B11: 3 | C11: =tabula!C11 -> 4 | D11: =tabula!D11 -> Vilciņi | E11: =tabula!E11 -> 91 | F11: =tabula!F11 -> 183 | G11: =tabula!G11 -> 111 | H11: =tabula!H11 -> 72 | I11: =tabula!I11 -> 98 | J11: =tabula!J11 -> 100 | K11: =tabula!K11 -> 101 | L11: =tabula!L11 -> 177 | M11: =tabula!M11 -> 81 | N11: =tabula!N11 -> 138 | O11: =tabula!O11 -> 1152 | P11: =tabula!P11 -> 08 min. 35,430 | Q11: =tabula!Q11 -> 63 | R11: =tabula!R11 -> 08,181 sek.
B12: 1 | C12: =tabula!C12 -> 5 | D12: =tabula!D12 -> Wilsons | E12: =tabula!E12 -> 93 | F12: =tabula!F12 -> 154 | G12: =tabula!G12 -> 96 | H12: =tabula!H12 -> 77 | I12: =tabula!I12 -> 94 | J12: =tabula!J12 -> 85 | K12: =tabula!K12 -> 97 | L12: =tabula!L12 -> 182 | M12: =tabula!M12 -> 126 | N12: =tabula!N12 -> 139 | O12: =tabula!O12 -> 1143 | P12: =tabula!P12 -> 07 min. 52,415 | Q12: =tabula!Q12 -> 62 | R12: =tabula!R12 -> 07,620 sek.
B13: 3 | C13: =tabula!C13 -> 6 | D13: =tabula!D13 -> Sindija DJV | E13: =tabula!E13 -> 92 | F13: =tabula!F13 -> 192 | G13: =tabula!G13 -> 40 | H13: =tabula!H13 -> 97 | I13: =tabula!I13 -> 113 | J13: =tabula!J13 -> 136 | K13: =tabula!K13 -> 111 | L13: =tabula!L13 -> 134 | M13: =tabula!M13 -> 87 | N13: =tabula!N13 -> 133 | O13: =tabula!O13 -> 1135 | P13: =tabula!P13 -> 03 min. 48,361 | Q13: =tabula!Q13 -> 54 | R13: =tabula!R13 -> 04,229 sek.
B14: 1 | C14: =tabula!C14 -> 7 | D14: =tabula!D14 -> BraveDucks | E14: =tabula!E14 -> 64 | F14: =tabula!F14 -> 162 | G14: =tabula!G14 -> 91 | H14: =tabula!H14 -> 91 | I14: =tabula!I14 -> 99 | J14: =tabula!J14 -> 112 | K14: =tabula!K14 -> 98 | L14: =tabula!L14 -> 172 | M14: =tabula!M14 -> 108 | N14: =tabula!N14 -> 136 | O14: =tabula!O14 -> 1133 | P14: =tabula!P14 -> 06 min. 46,973 | Q14: =tabula!Q14 -> 59 | R14: =tabula!R14 -> 06,898 sek.
B15: 1 | C15: =tabula!C15 -> 8 | D15: =tabula!D15 -> Čempioni_GVBM | E15: =tabula!E15 -> 111 | F15: =tabula!F15 -> 147 | G15: =tabula!G15 -> 121 | H15: =tabula!H15 -> 89 | I15: =tabula!I15 -> 81 | J15: =tabula!J15 -> 100 | K15: =tabula!K15 -> 100 | L15: =tabula!L15 -> 131 | M15: =tabula!M15 -> 124 | N15: =tabula!N15 -> 129 | O15: =tabula!O15 -> 1133 | P15: =tabula!P15 -> 06 min. 49,195 | Q15: =tabula!Q15 -> 59 | R15: =tabula!R15 -> 06,936 sek.
B16: 2 | C16: =tabula!C16 -> 9 | D16: =tabula!D16 -> LOTOS | E16: =tabula!E16 -> 83 | F16: =tabula!F16 -> 180 | G16: =tabula!G16 -> 112 | H16: =tabula!H16 -> 62 | I16: =tabula!I16 -> 76 | J16: =tabula!J16 -> 109 | K16: =tabula!K16 -> 85 | L16: =tabula!L16 -> 166 | M16: =tabula!M16 -> 121 | N16: =tabula!N16 -> 137 | O16: =tabula!O16 -> 1131 | P16: =tabula!P16 -> 06 min. 28,938 | Q16: =tabula!Q16 -> 59 | R16: =tabula!R16 -> 06,592 sek.
B17: 3 | C17: =tabula!C17 -> 10 | D17: =tabula!D17 -> PUČIGŪNI MIZĀ | E17: =tabula!E17 -> 90 | F17: =tabula!F17 -> 172 | G17: =tabula!G17 -> 102 | H17: =tabula!H17 -> 90 | I17: =tabula!I17 -> 82 | J17: =tabula!J17 -> 97 | K17: =tabula!K17 -> 99 | L17: =tabula!L17 -> 145 | M17: =tabula!M17 -> 108 | N17: =tabula!N17 -> 129 | O17: =tabula!O17 -> 1114 | P17: =tabula!P17 -> 08 min. 08,013 | Q17: =tabula!Q17 -> 60 | R17: =tabula!R17 -> 08,134 sek.
B18: 2 | C18: =tabula!C18 -> 11 | D18: =tabula!D18 -> lielmezi.lv | E18: =tabula!E18 -> 56 | F18: =tabula!F18 -> 177 | G18: =tabula!G18 -> 60 | H18: =tabula!H18 -> 83 | I18: =tabula!I18 -> 98 | J18: =tabula!J18 -> 139 | K18: =tabula!K18 -> 101 | L18: =tabula!L18 -> 152 | M18: =tabula!M18 -> 108 | N18: =tabula!N18 -> 132 | O18: =tabula!O18 -> 1106 | P18: =tabula!P18 -> 06 min. 35,304 | Q18: =tabula!Q18 -> 58 | R18: =tabula!R18 -> 06,816 sek.
B19: 2 | C19: =tabula!C19 -> 12 | D19: =tabula!D19 -> Annas iela & Co | E19: =tabula!E19 -> 94 | F19: =tabula!F19 -> 124 | G19: =tabula!G19 -> 122 | H19: =tabula!H19 -> 85 | I19: =tabula!I19 -> 80 | J19: =tabula!J19 -> 101 | K19: =tabula!K19 -> 85 | L19: =tabula!L19 -> 163 | M19: =tabula!M19 -> 121 | N19: =tabula!N19 -> 128 | O19: =tabula!O19 -> 1103 | P19: =tabula!P19 -> 09 min. 34,606 | Q19: =tabula!Q19 -> 63 | R19: =tabula!R19 -> 09,121 sek.
B20: 2 | C20: =tabula!C20 -> 13 | D20: =tabula!D20 -> EVER PUB | E20: =tabula!E20 -> 110 | F20: =tabula!F20 -> 192 | G20: =tabula!G20 -> 96 | H20: =tabula!H20 -> 109 | I20: =tabula!I20 -> 90 | J20: =tabula!J20 -> 112 | K20: =tabula!K20 -> 9 | L20: =tabula!L20 -> 160 | M20: =tabula!M20 -> 104 | N20: =tabula!N20 -> 112 | O20: =tabula!O20 -> 1094 | P20: =tabula!P20 -> 04 min. 51,542 | Q20: =tabula!Q20 -> 56 | R20: =tabula!R20 -> 05,206 sek.
B21: 3 | C21: =tabula!C21 -> 14 | D21: =tabula!D21 -> Indriķi | E21: =tabula!E21 -> 109 | F21: =tabula!F21 -> 197 | G21: =tabula!G21 -> 87 | H21: =tabula!H21 -> 79 | I21: =tabula!I21 -> 91 | J21: =tabula!J21 -> 91 | K21: =tabula!K21 -> 108 | L21: =tabula!L21 -> 118 | M21: =tabula!M21 -> 107 | N21: =tabula!N21 -> 101 | O21: =tabula!O21 -> 1088 | P21: =tabula!P21 -> 04 min. 43,632 | Q21: =tabula!Q21 -> 54 | R21: =tabula!R21 -> 05,252 sek.
B22: 1 | C22: =tabula!C22 -> 15 | D22: =tabula!D22 -> Briedīši | E22: =tabula!E22 -> 123 | F22: =tabula!F22 -> 161 | G22: =tabula!G22 -> 84 | H22: =tabula!H22 -> 103 | I22: =tabula!I22 -> 58 | J22: =tabula!J22 -> 81 | K22: =tabula!K22 -> 96 | L22: =tabula!L22 -> 177 | M22: =tabula!M22 -> 111 | N22: =tabula!N22 -> 89 | O22: =tabula!O22 -> 1083 | P22: =tabula!P22 -> 06 min. 39,244 | Q22: =tabula!Q22 -> 57 | R22: =tabula!R22 -> 07,004 sek.
B23: 3 | C23: =tabula!C23 -> 16 | D23: =tabula!D23 -> Aitu banda | E23: =tabula!E23 -> 123 | F23: =tabula!F23 -> 119 | G23: =tabula!G23 -> 117 | H23: =tabula!H23 -> 77 | I23: =tabula!I23 -> 95 | J23: =tabula!J23 -> 110 | K23: =tabula!K23 -> 68 | L23: =tabula!L23 -> 178 | M23: =tabula!M23 -> 86 | N23: =tabula!N23 -> 100 | O23: =tabula!O23 -> 1073 | P23: =tabula!P23 -> 07 min. 06,925 | Q23: =tabula!Q23 -> 57 | R23: =tabula!R23 -> 07,490 sek.
B24: 3 | C24: =tabula!C24 -> 17 | D24: =tabula!D24 -> Tagad zinu - ko nezināju! | E24: =tabula!E24 -> 90 | F24: =tabula!F24 -> 143 | G24: =tabula!G24 -> 73 | H24: =tabula!H24 -> 93 | I24: =tabula!I24 -> 46 | J24: =tabula!J24 -> 141 | K24: =tabula!K24 -> 108 | L24: =tabula!L24 -> 133 | M24: =tabula!M24 -> 110 | N24: =tabula!N24 -> 136 | O24: =tabula!O24 -> 1073 | P24: =tabula!P24 -> 05 min. 31,229 | Q24: =tabula!Q24 -> 55 | R24: =tabula!R24 -> 06,022 sek.
B25: 3 | C25: =tabula!C25 -> 18 | D25: =tabula!D25 -> Ak vai! | E25: =tabula!E25 -> 64 | F25: =tabula!F25 -> 171 | G25: =tabula!G25 -> 88 | H25: =tabula!H25 -> 92 | I25: =tabula!I25 -> 69 | J25: =tabula!J25 -> 109 | K25: =tabula!K25 -> 98 | L25: =tabula!L25 -> 170 | M25: =tabula!M25 -> 123 | N25: =tabula!N25 -> 88 | O25: =tabula!O25 -> 1072 | P25: =tabula!P25 -> 05 min. 12,524 | Q25: =tabula!Q25 -> 54 | R25: =tabula!R25 -> 05,787 sek.
B26: 1 | C26: =tabula!C26 -> 19 | D26: =tabula!D26 -> Salenieki | E26: =tabula!E26 -> 111 | F26: =tabula!F26 -> 130 | G26: =tabula!G26 -> 95 | H26: =tabula!H26 -> 83 | I26: =tabula!I26 -> 76 | J26: =tabula!J26 -> 113 | K26: =tabula!K26 -> 99 | L26: =tabula!L26 -> 123 | M26: =tabula!M26 -> 109 | N26: =tabula!N26 -> 129 | O26: =tabula!O26 -> 1068 | P26: =tabula!P26 -> 06 min. 49,487 | Q26: =tabula!Q26 -> 57 | R26: =tabula!R26 -> 07,184 sek.
B27: 1 | C27: =tabula!C27 -> 20 | D27: =tabula!D27 -> Omei dzimpuks :) | E27: =tabula!E27 -> 109 | F27: =tabula!F27 -> 127 | G27: =tabula!G27 -> 106 | H27: =tabula!H27 -> 63 | I27: =tabula!I27 -> 106 | J27: =tabula!J27 -> 122 | K27: =tabula!K27 -> 97 | L27: =tabula!L27 -> 105 | M27: =tabula!M27 -> 108 | N27: =tabula!N27 -> 124 | O27: =tabula!O27 -> 1067 | P27: =tabula!P27 -> 08 min. 38,002 | Q27: =tabula!Q27 -> 60 | R27: =tabula!R27 -> 08,633 sek.
B28: 3 | C28: =tabula!C28 -> 21 | D28: =tabula!D28 -> La familia | E28: =tabula!E28 -> 87 | F28: =tabula!F28 -> 175 | G28: =tabula!G28 -> 94 | H28: =tabula!H28 -> 76 | I28: =tabula!I28 -> 102 | J28: =tabula!J28 -> 81 | K28: =tabula!K28 -> 94 | L28: =tabula!L28 -> 116 | M28: =tabula!M28 -> 130 | N28: =tabula!N28 -> 110 | O28: =tabula!O28 -> 1065 | P28: =tabula!P28 -> 06 min. 30,267 | Q28: =tabula!Q28 -> 56 | R28: =tabula!R28 -> 06,969 sek.
C29: =tabula!C29 -> 22 | D29: =tabula!D29 -> cibiņa blice | E29: =tabula!E29 -> 124 | F29: =tabula!F29 -> 173 | G29: =tabula!G29 -> 100 | H29: =tabula!H29 -> 74 | I29: =tabula!I29 -> 85 | J29: =tabula!J29 -> 82 | K29: =tabula!K29 -> 65 | L29: =tabula!L29 -> 177 | M29: =tabula!M29 -> 72 | N29: =tabula!N29 -> 107 | O29: =tabula!O29 -> 1059 | P29: =tabula!P29 -> 06 min. 40,709 | Q29: =tabula!Q29 -> 56 | R29: =tabula!R29 -> 07,156 sek.
C30: =tabula!C30 -> 23 | D30: =tabula!D30 -> Lelde & viedie | E30: =tabula!E30 -> 71 | F30: =tabula!F30 -> 144 | G30: =tabula!G30 -> 85 | H30: =tabula!H30 -> 102 | I30: =tabula!I30 -> 81 | J30: =tabula!J30 -> 135 | K30: =tabula!K30 -> 87 | L30: =tabula!L30 -> 126 | M30: =tabula!M30 -> 97 | N30: =tabula!N30 -> 130 | O30: =tabula!O30 -> 1058 | P30: =tabula!P30 -> 08 min. 10,067 | Q30: =tabula!Q30 -> 59 | R30: =tabula!R30 -> 08,306 sek.
C31: =tabula!C31 -> 24 | D31: =tabula!D31 -> pienazupa | E31: =tabula!E31 -> 137 | F31: =tabula!F31 -> 147 | G31: =tabula!G31 -> 87 | H31: =tabula!H31 -> 84 | I31: =tabula!I31 -> 109 | J31: =tabula!J31 -> 77 | K31: =tabula!K31 -> 111 | L31: =tabula!L31 -> 129 | M31: =tabula!M31 -> 107 | N31: =tabula!N31 -> 70 | O31: =tabula!O31 -> 1058 | P31: =tabula!P31 -> 04 min. 25,341 | Q31: =tabula!Q31 -> 52 | R31: =tabula!R31 -> 05,103 sek.
C32: =tabula!C32 -> 25 | D32: =tabula!D32 -> VECIE KAPI | E32: =tabula!E32 -> 85 | F32: =tabula!F32 -> 120 | G32: =tabula!G32 -> 89 | H32: =tabula!H32 -> 67 | I32: =tabula!I32 -> 90 | J32: =tabula!J32 -> 117 | K32: =tabula!K32 -> 78 | L32: =tabula!L32 -> 160 | M32: =tabula!M32 -> 110 | N32: =tabula!N32 -> 134 | O32: =tabula!O32 -> 1050 | P32: =tabula!P32 -> 06 min. 22,591 | Q32: =tabula!Q32 -> 56 | R32: =tabula!R32 -> 06,832 sek.
C33: =tabula!C33 -> 26 | D33: =tabula!D33 -> 5G | E33: =tabula!E33 -> 107 | F33: =tabula!F33 -> 161 | G33: =tabula!G33 -> 85 | H33: =tabula!H33 -> 76 | I33: =tabula!I33 -> 83 | J33: =tabula!J33 -> 95 | K33: =tabula!K33 -> 102 | L33: =tabula!L33 -> 134 | M33: =tabula!M33 -> 102 | N33: =tabula!N33 -> 105 | O33: =tabula!O33 -> 1050 | P33: =tabula!P33 -> 06 min. 13,850 | Q33: =tabula!Q33 -> 55 | R33: =tabula!R33 -> 06,797 sek.
C34: =tabula!C34 -> 27 | D34: =tabula!D34 -> Branku Rezidence | E34: =tabula!E34 -> 66 | F34: =tabula!F34 -> 138 | G34: =tabula!G34 -> 90 | H34: =tabula!H34 -> 96 | I34: =tabula!I34 -> 105 | J34: =tabula!J34 -> 140 | K34: =tabula!K34 -> 29 | L34: =tabula!L34 -> 175 | M34: =tabula!M34 -> 109 | N34: =tabula!N34 -> 87 | O34: =tabula!O34 -> 1035 | P34: =tabula!P34 -> 06 min. 08,942 | Q34: =tabula!Q34 -> 55 | R34: =tabula!R34 -> 06,708 sek.
C35: =tabula!C35 -> 28 | D35: =tabula!D35 -> Klieši & Draugi | E35: =tabula!E35 -> 86 | F35: =tabula!F35 -> 171 | G35: =tabula!G35 -> 72 | H35: =tabula!H35 -> 88 | I35: =tabula!I35 -> 93 | J35: =tabula!J35 -> 95 | K35: =tabula!K35 -> 97 | L35: =tabula!L35 -> 145 | M35: =tabula!M35 -> 58 | N35: =tabula!N35 -> 126 | O35: =tabula!O35 -> 1031 | P35: =tabula!P35 -> 11 min. 44,027 | Q35: =tabula!Q35 -> 63 | R35: =tabula!R35 -> 11,175 sek.
C36: =tabula!C36 -> 29 | D36: =tabula!D36 -> PAKO6 | E36: =tabula!E36 -> 103 | F36: =tabula!F36 -> 126 | G36: =tabula!G36 -> 81 | H36: =tabula!H36 -> 72 | I36: =tabula!I36 -> 83 | J36: =tabula!J36 -> 126 | K36: =tabula!K36 -> 53 | L36: =tabula!L36 -> 147 | M36: =tabula!M36 -> 104 | N36: =tabula!N36 -> 136 | O36: =tabula!O36 -> 1031 | P36: =tabula!P36 -> 08 min. 13,972 | Q36: =tabula!Q36 -> 58 | R36: =tabula!R36 -> 08,517 sek.
C37: =tabula!C37 -> 30 | D37: =tabula!D37 -> Podzinieks | E37: =tabula!E37 -> 47 | F37: =tabula!F37 -> 142 | G37: =tabula!G37 -> 94 | H37: =tabula!H37 -> 87 | I37: =tabula!I37 -> 89 | J37: =tabula!J37 -> 137 | K37: =tabula!K37 -> 104 | L37: =tabula!L37 -> 133 | M37: =tabula!M37 -> 116 | N37: =tabula!N37 -> 61 | O37: =tabula!O37 -> 1010 | P37: =tabula!P37 -> 05 min. 38,217 | Q37: =tabula!Q37 -> 52 | R37: =tabula!R37 -> 06,504 sek.
C38: =tabula!C38 -> 31 | D38: =tabula!D38 -> Viktorinators3000 | E38: =tabula!E38 -> 77 | F38: =tabula!F38 -> 140 | G38: =tabula!G38 -> 66 | H38: =tabula!H38 -> 79 | I38: =tabula!I38 -> 64 | J38: =tabula!J38 -> 110 | K38: =tabula!K38 -> 98 | L38: =tabula!L38 -> 167 | M38: =tabula!M38 -> 124 | N38: =tabula!N38 -> 85 | O38: =tabula!O38 -> 1010 | P38: =tabula!P38 -> 05 min. 50,992 | Q38: =tabula!Q38 -> 52 | R38: =tabula!R38 -> 06,750 sek.
C39: =tabula!C39 -> 32 | D39: =tabula!D39 -> Kauliņi | E39: =tabula!E39 -> 105 | F39: =tabula!F39 -> 138 | G39: =tabula!G39 -> 95 | H39: =tabula!H39 -> 99 | I39: =tabula!I39 -> 86 | J39: =tabula!J39 -> 67 | K39: =tabula!K39 -> 97 | L39: =tabula!L39 -> 126 | M39: =tabula!M39 -> 107 | N39: =tabula!N39 -> 89 | O39: =tabula!O39 -> 1009 | P39: =tabula!P39 -> 05 min. 49,789 | Q39: =tabula!Q39 -> 52 | R39: =tabula!R39 -> 06,727 sek.
C40: =tabula!C40 -> 33 | D40: =tabula!D40 -> Salaspils Zīriņi | E40: =tabula!E40 -> 85 | F40: =tabula!F40 -> 166 | G40: =tabula!G40 -> 111 | H40: =tabula!H40 -> 51 | I40: =tabula!I40 -> 132 | J40: =tabula!J40 -> 68 | K40: =tabula!K40 -> 74 | L40: =tabula!L40 -> 145 | M40: =tabula!M40 -> 57 | N40: =tabula!N40 -> 118 | O40: =tabula!O40 -> 1007 | P40: =tabula!P40 -> 06 min. 04,358 | Q40: =tabula!Q40 -> 53 | R40: =tabula!R40 -> 06,875 sek.
C41: =tabula!C41 -> 34 | D41: =tabula!D41 -> Kazubrenču princeses | E41: =tabula!E41 -> 87 | F41: =tabula!F41 -> 128 | G41: =tabula!G41 -> 65 | H41: =tabula!H41 -> 90 | I41: =tabula!I41 -> 75 | J41: =tabula!J41 -> 118 | K41: =tabula!K41 -> 110 | L41: =tabula!L41 -> 109 | M41: =tabula!M41 -> 121 | N41: =tabula!N41 -> 104 | O41: =tabula!O41 -> 1007 | P41: =tabula!P41 -> 04 min. 59,705 | Q41: =tabula!Q41 -> 51 | R41: =tabula!R41 -> 05,877 sek.
C42: =tabula!C42 -> 35 | D42: =tabula!D42 -> Pirāta kūpinājumi | E42: =tabula!E42 -> 88 | F42: =tabula!F42 -> 151 | G42: =tabula!G42 -> 111 | H42: =tabula!H42 -> 85 | I42: =tabula!I42 -> 68 | J42: =tabula!J42 -> 84 | K42: =tabula!K42 -> 86 | L42: =tabula!L42 -> 159 | M42: =tabula!M42 -> 84 | N42: =tabula!N42 -> 88 | O42: =tabula!O42 -> 1004 | P42: =tabula!P42 -> 06 min. 48,659 | Q42: =tabula!Q42 -> 54 | R42: =tabula!R42 -> 07,568 sek.
C43: =tabula!C43 -> 36 | D43: =tabula!D43 -> Gangsterģimenīte | E43: =tabula!E43 -> 77 | F43: =tabula!F43 -> 132 | G43: =tabula!G43 -> 60 | H43: =tabula!H43 -> 101 | I43: =tabula!I43 -> 91 | J43: =tabula!J43 -> 95 | K43: =tabula!K43 -> 109 | L43: =tabula!L43 -> 147 | M43: =tabula!M43 -> 113 | N43: =tabula!N43 -> 79 | O43: =tabula!O43 -> 1004 | P43: =tabula!P43 -> 06 min. 25,078 | Q43: =tabula!Q43 -> 53 | R43: =tabula!R43 -> 07,266 sek.
C44: =tabula!C44 -> 37 | D44: =tabula!D44 -> BunS | E44: =tabula!E44 -> 63 | F44: =tabula!F44 -> 123 | G44: =tabula!G44 -> 90 | H44: =tabula!H44 -> 69 | I44: =tabula!I44 -> 87 | J44: =tabula!J44 -> 112 | K44: =tabula!K44 -> 75 | L44: =tabula!L44 -> 143 | M44: =tabula!M44 -> 118 | N44: =tabula!N44 -> 116 | O44: =tabula!O44 -> 996 | P44: =tabula!P44 -> 11 min. 01,012 | Q44: =tabula!Q44 -> 61 | R44: =tabula!R44 -> 10,836 sek.
C45: =tabula!C45 -> 38 | D45: =tabula!D45 -> Umpalumpas | E45: =tabula!E45 -> 105 | F45: =tabula!F45 -> 142 | G45: =tabula!G45 -> 103 | H45: =tabula!H45 -> 49 | I45: =tabula!I45 -> 65 | J45: =tabula!J45 -> 99 | K45: =tabula!K45 -> 97 | L45: =tabula!L45 -> 166 | M45: =tabula!M45 -> 131 | N45: =tabula!N45 -> 39 | O45: =tabula!O45 -> 996 | P45: =tabula!P45 -> 05 min. 34,657 | Q45: =tabula!Q45 -> 51 | R45: =tabula!R45 -> 06,562 sek.
C46: =tabula!C46 -> 39 | D46: =tabula!D46 -> Just80% | E46: =tabula!E46 -> 79 | F46: =tabula!F46 -> 121 | G46: =tabula!G46 -> 96 | H46: =tabula!H46 -> 94 | I46: =tabula!I46 -> 71 | J46: =tabula!J46 -> 98 | K46: =tabula!K46 -> 103 | L46: =tabula!L46 -> 103 | M46: =tabula!M46 -> 86 | N46: =tabula!N46 -> 141 | O46: =tabula!O46 -> 992 | P46: =tabula!P46 -> 09 min. 39,160 | Q46: =tabula!Q46 -> 58 | R46: =tabula!R46 -> 09,986 sek.
C47: =tabula!C47 -> 40 | D47: =tabula!D47 -> Skuju Ceri | E47: =tabula!E47 -> 86 | F47: =tabula!F47 -> 155 | G47: =tabula!G47 -> 76 | H47: =tabula!H47 -> 83 | I47: =tabula!I47 -> 84 | J47: =tabula!J47 -> 138 | K47: =tabula!K47 -> 89 | L47: =tabula!L47 -> 138 | M47: =tabula!M47 -> 57 | N47: =tabula!N47 -> 82 | O47: =tabula!O47 -> 988 | P47: =tabula!P47 -> 06 min. 12,882 | Q47: =tabula!Q47 -> 52 | R47: =tabula!R47 -> 07,171 sek.
C48: =tabula!C48 -> 41 | D48: =tabula!D48 -> 5xK | E48: =tabula!E48 -> 119 | F48: =tabula!F48 -> 116 | G48: =tabula!G48 -> 78 | H48: =tabula!H48 -> 54 | I48: =tabula!I48 -> 91 | J48: =tabula!J48 -> 123 | K48: =tabula!K48 -> 57 | L48: =tabula!L48 -> 155 | M48: =tabula!M48 -> 75 | N48: =tabula!N48 -> 116 | O48: =tabula!O48 -> 984 | P48: =tabula!P48 -> 08 min. 16,388 | Q48: =tabula!Q48 -> 56 | R48: =tabula!R48 -> 08,864 sek.
C49: =tabula!C49 -> 42 | D49: =tabula!D49 -> Vecie ērmi | E49: =tabula!E49 -> 89 | F49: =tabula!F49 -> 121 | G49: =tabula!G49 -> 60 | H49: =tabula!H49 -> 42 | I49: =tabula!I49 -> 66 | J49: =tabula!J49 -> 98 | K49: =tabula!K49 -> 94 | L49: =tabula!L49 -> 154 | M49: =tabula!M49 -> 124 | N49: =tabula!N49 -> 130 | O49: =tabula!O49 -> 978 | P49: =tabula!P49 -> 06 min. 53,007 | Q49: =tabula!Q49 -> 52 | R49: =tabula!R49 -> 07,942 sek.
C50: =tabula!C50 -> 43 | D50: =tabula!D50 -> Ķiegelis | E50: =tabula!E50 -> 45 | F50: =tabula!F50 -> 166 | G50: =tabula!G50 -> 81 | H50: =tabula!H50 -> 61 | I50: =tabula!I50 -> 67 | J50: =tabula!J50 -> 67 | K50: =tabula!K50 -> 94 | L50: =tabula!L50 -> 145 | M50: =tabula!M50 -> 123 | N50: =tabula!N50 -> 129 | O50: =tabula!O50 -> 978 | P50: =tabula!P50 -> 05 min. 15,374 | Q50: =tabula!Q50 -> 50 | R50: =tabula!R50 -> 06,307 sek.
C51: =tabula!C51 -> 44 | D51: =tabula!D51 -> Pitijs | E51: =tabula!E51 -> 112 | F51: =tabula!F51 -> 180 | G51: =tabula!G51 -> 68 | H51: =tabula!H51 -> 106 | I51: =tabula!I51 -> 44 | J51: =tabula!J51 -> 107 | K51: =tabula!K51 -> 69 | L51: =tabula!L51 -> 127 | M51: =tabula!M51 -> 117 | N51: =tabula!N51 -> 41 | O51: =tabula!O51 -> 971 | P51: =tabula!P51 -> 05 min. 17,753 | Q51: =tabula!Q51 -> 50 | R51: =tabula!R51 -> 06,355 sek.
C52: =tabula!C52 -> 45 | D52: =tabula!D52 -> Desu Meistari | E52: =tabula!E52 -> 81 | F52: =tabula!F52 -> 159 | G52: =tabula!G52 -> 34 | H52: =tabula!H52 -> 98 | I52: =tabula!I52 -> 92 | J52: =tabula!J52 -> 68 | K52: =tabula!K52 -> 51 | L52: =tabula!L52 -> 167 | M52: =tabula!M52 -> 82 | N52: =tabula!N52 -> 135 | O52: =tabula!O52 -> 967 | P52: =tabula!P52 -> 05 min. 26,951 | Q52: =tabula!Q52 -> 51 | R52: =tabula!R52 -> 06,411 sek.
C53: =tabula!C53 -> 46 | D53: =tabula!D53 -> Rapsis | E53: =tabula!E53 -> 73 | F53: =tabula!F53 -> 145 | G53: =tabula!G53 -> 65 | H53: =tabula!H53 -> 91 | I53: =tabula!I53 -> 66 | J53: =tabula!J53 -> 132 | K53: =tabula!K53 -> 81 | L53: =tabula!L53 -> 132 | M53: =tabula!M53 -> 99 | N53: =tabula!N53 -> 70 | O53: =tabula!O53 -> 954 | P53: =tabula!P53 -> 09 min. 28,863 | Q53: =tabula!Q53 -> 55 | R53: =tabula!R53 -> 10,343 sek.
C54: =tabula!C54 -> 47 | D54: =tabula!D54 -> Trakie Truši | E54: =tabula!E54 -> 29 | F54: =tabula!F54 -> 156 | G54: =tabula!G54 -> 90 | H54: =tabula!H54 -> 96 | I54: =tabula!I54 -> 92 | J54: =tabula!J54 -> 100 | K54: =tabula!K54 -> 72 | L54: =tabula!L54 -> 156 | M54: =tabula!M54 -> 129 | N54: =tabula!N54 -> 26 | O54: =tabula!O54 -> 946 | P54: =tabula!P54 -> 07 min. 01,849 | Q54: =tabula!Q54 -> 53 | R54: =tabula!R54 -> 07,959 sek.
C55: =tabula!C55 -> 48 | D55: =tabula!D55 -> ātrumpūķi | E55: =tabula!E55 -> 93 | F55: =tabula!F55 -> 116 | G55: =tabula!G55 -> 83 | H55: =tabula!H55 -> 94 | I55: =tabula!I55 -> 79 | J55: =tabula!J55 -> 101 | K55: =tabula!K55 -> 76 | L55: =tabula!L55 -> 112 | M55: =tabula!M55 -> 101 | N55: =tabula!N55 -> 89 | O55: =tabula!O55 -> 944 | P55: =tabula!P55 -> 13 min. 16,913 | Q55: =tabula!Q55 -> 62 | R55: =tabula!R55 -> 12,853 sek.
C56: =tabula!C56 -> 49 | D56: =tabula!D56 -> Brilles +1 | E56: =tabula!E56 -> 86 | F56: =tabula!F56 -> 114 | G56: =tabula!G56 -> 77 | H56: =tabula!H56 -> 62 | I56: =tabula!I56 -> 72 | J56: =tabula!J56 -> 109 | K56: =tabula!K56 -> 91 | L56: =tabula!L56 -> 138 | M56: =tabula!M56 -> 91 | N56: =tabula!N56 -> 104 | O56: =tabula!O56 -> 944 | P56: =tabula!P56 -> 10 min. 03,445 | Q56: =tabula!Q56 -> 56 | R56: =tabula!R56 -> 10,776 sek.
C57: =tabula!C57 -> 50 | D57: =tabula!D57 -> Bučas Māja | E57: =tabula!E57 -> 102 | F57: =tabula!F57 -> 154 | G57: =tabula!G57 -> 56 | H57: =tabula!H57 -> 92 | I57: =tabula!I57 -> 64 | J57: =tabula!J57 -> 74 | K57: =tabula!K57 -> 16 | L57: =tabula!L57 -> 156 | M57: =tabula!M57 -> 128 | N57: =tabula!N57 -> 99 | O57: =tabula!O57 -> 941 | P57: =tabula!P57 -> 07 min. 42,103 | Q57: =tabula!Q57 -> 53 | R57: =tabula!R57 -> 08,719 sek.
C59: LIELDRAUGS ATBALSTĪTĀJI

Sheet 51-100
C2: =tabula!C2 -> "Ģimeņu viktorīna" (tiešsaistē / vebinārā) | 2025.gada 22.februāris
B3: Grupa | C3: # | D3: Dalībnieks | Raunds | Tēma | E3: 1 | F3: 2 | G3: 3 | H3: 4 | I3: 5 | J3: 6 | K3: 7 | L3: 8 | M3: 9 | N3: 10 | O3: KOPĀ | P3: Laiks kopā uz pareizajām atbildēm | Q3: Pareizās atbildes (max) | R3: Vid.laiks uz 1 pareizo atb.
E4: =tabula!E4 -> Pavediens | F4: =tabula!F4 -> Ekspresis | G4: =tabula!G4 -> Vizuālais | H4: =tabula!H4 -> Burtu mīkla | I4: =tabula!I4 -> Ķēde | J4: =tabula!J4 -> Latviešu filmas no viena kadra | K4: =tabula!K4 -> Risks | L4: =tabula!L4 -> Kas kopīgs? | M4: =tabula!M4 -> Liekais pazūd | N4: =tabula!N4 -> Audio
D5: Max punkti raundā (bez bonusiem) | E5: =tabula!E5 -> 150 | F5: =tabula!F5 -> 240 | G5: =tabula!G5 -> 150 | H5: =tabula!H5 -> 162 | I5: =tabula!I5 -> 150 | J5: =tabula!J5 -> 150 | K5: =tabula!K5 -> 120 | L5: =tabula!L5 -> 180 | M5: =tabula!M5 -> 132 | N5: =tabula!N5 -> 150 | O5: =SUM(E5:N5) -> 1584
C6: Jautājumi | E6: =tabula!E6 -> 6 | F6: =tabula!F6 -> 12 | G6: =tabula!G6 -> 6 | H6: =tabula!H6 -> 6 | I6: =tabula!I6 -> 8 | J6: =tabula!J6 -> 6 | K6: =tabula!K6 -> 6 | L6: =tabula!L6 -> 8 | M6: =tabula!M6 -> 6 | N6: =tabula!N6 -> 6 | Q6: =SUM(E6:N6) -> 70
D7: Vidējie rādītāji | E7: =tabula!E7 -> 76.7 | F7: =tabula!F7 -> 130.6 | G7: =tabula!G7 -> 73.5 | H7: =tabula!H7 -> 67.5 | I7: =tabula!I7 -> 70.1 | J7: =tabula!J7 -> 88.8 | K7: =tabula!K7 -> 56.4 | L7: =tabula!L7 -> 124.4 | M7: =tabula!M7 -> 83.2 | N7: =tabula!N7 -> 79.1 | O7: =tabula!O7 -> 850.2 | P7: =tabula!P7 -> - | Q7: =tabula!Q7 -> 48.1 | R7: =tabula!R7 -> -
B8: 3 | C8: =tabula!C58 -> 51 | D8: =tabula!D58 -> Draugiņi | E8: =tabula!E58 -> 84 | F8: =tabula!F58 -> 171 | G8: =tabula!G58 -> 54 | H8: =tabula!H58 -> 59 | I8: =tabula!I58 -> 63 | J8: =tabula!J58 -> 89 | K8: =tabula!K58 -> 53 | L8: =tabula!L58 -> 172 | M8: =tabula!M58 -> 78 | N8: =tabula!N58 -> 117 | O8: =tabula!O58 -> 940 | P8: =tabula!P58 -> 07 min. 58,022 | Q8: =tabula!Q58 -> 54 | R8: =tabula!R58 -> 08,852 sek.
B9: 1 | C9: =tabula!C59 -> 52 | D9: =tabula!D59 -> PESKOSTYLE | E9: =tabula!E59 -> 87 | F9: =tabula!F59 -> 143 | G9: =tabula!G59 -> 56 | H9: =tabula!H59 -> 80 | I9: =tabula!I59 -> 95 | J9: =tabula!J59 -> 114 | K9: =tabula!K59 -> 44 | L9: =tabula!L59 -> 128 | M9: =tabula!M59 -> 92 | N9: =tabula!N59 -> 100 | O9: =tabula!O59 -> 939 | P9: =tabula!P59 -> 09 min. 23,202 | Q9: =tabula!Q59 -> 55 | R9: =tabula!R59 -> 10,240 sek.
B10: 1 | C10: =tabula!C60 -> 53 | D10: =tabula!D60 -> LĪČI | E10: =tabula!E60 -> 106 | F10: =tabula!F60 -> 160 | G10: =tabula!G60 -> 67 | H10: =tabula!H60 -> 69 | I10: =tabula!I60 -> 62 | J10: =tabula!J60 -> 93 | K10: =tabula!K60 -> 40 | L10: =tabula!L60 -> 131 | M10: =tabula!M60 -> 84 | N10: =tabula!N60 -> 124 | O10: =tabula!O60 -> 936 | P10: =tabula!P60 -> 04 min. 05,227 | Q10: =tabula!Q60 -> 48 | R10: =tabula!R60 -> 05,109 sek.
B11: 3 | C11: =tabula!C61 -> 54 | D11: =tabula!D61 -> Children of Dace | E11: =tabula!E61 -> 97 | F11: =tabula!F61 -> 136 | G11: =tabula!G61 -> 96 | H11: =tabula!H61 -> 67 | I11: =tabula!I61 -> 63 | J11: =tabula!J61 -> 103 | K11: =tabula!K61 -> 90 | L11: =tabula!L61 -> 112 | M11: =tabula!M61 -> 110 | N11: =tabula!N61 -> 61 | O11: =tabula!O61 -> 935 | P11: =tabula!P61 -> 07 min. 30,662 | Q11: =tabula!Q61 -> 52 | R11: =tabula!R61 -> 08,667 sek.
B12: 1 | C12: =tabula!C62 -> 55 | D12: =tabula!D62 -> PutniņiCūciņas | E12: =tabula!E62 -> 67 | F12: =tabula!F62 -> 133 | G12: =tabula!G62 -> 85 | H12: =tabula!H62 -> 31 | I12: =tabula!I62 -> 114 | J12: =tabula!J62 -> 72 | K12: =tabula!K62 -> 74 | L12: =tabula!L62 -> 150 | M12: =tabula!M62 -> 96 | N12: =tabula!N62 -> 113 | O12: =tabula!O62 -> 935 | P12: =tabula!P62 -> 03 min. 46,971 | Q12: =tabula!Q62 -> 46 | R12: =tabula!R62 -> 04,934 sek.
B13: 3 | C13: =tabula!C63 -> 56 | D13: =tabula!D63 -> KIDD | E13: =tabula!E63 -> 81 | F13: =tabula!F63 -> 134 | G13: =tabula!G63 -> 92 | H13: =tabula!H63 -> 69 | I13: =tabula!I63 -> 65 | J13: =tabula!J63 -> 109 | K13: =tabula!K63 -> 91 | L13: =tabula!L63 -> 104 | M13: =tabula!M63 -> 119 | N13: =tabula!N63 -> 69 | O13: =tabula!O63 -> 933 | P13: =tabula!P63 -> 06 min. 59,658 | Q13: =tabula!Q63 -> 52 | R13: =tabula!R63 -> 08,070 sek.
B14: 1 | C14: =tabula!C64 -> 57 | D14: =tabula!D64 -> Līvusēta Pitragā | E14: =tabula!E64 -> 84 | F14: =tabula!F64 -> 128 | G14: =tabula!G64 -> 101 | H14: =tabula!H64 -> 73 | I14: =tabula!I64 -> 85 | J14: =tabula!J64 -> 104 | K14: =tabula!K64 -> 20 | L14: =tabula!L64 -> 133 | M14: =tabula!M64 -> 89 | N14: =tabula!N64 -> 112 | O14: =tabula!O64 -> 929 | P14: =tabula!P64 -> 06 min. 38,388 | Q14: =tabula!Q64 -> 51 | R14: =tabula!R64 -> 07,812 sek.
C15: =tabula!C65 -> 58 | D15: =tabula!D65 -> Henrijs | E15: =tabula!E65 -> 93 | F15: =tabula!F65 -> 143 | G15: =tabula!G65 -> 100 | H15: =tabula!H65 -> 59 | I15: =tabula!I65 -> 74 | J15: =tabula!J65 -> 114 | K15: =tabula!K65 -> 58 | L15: =tabula!L65 -> 137 | M15: =tabula!M65 -> 89 | N15: =tabula!N65 -> 61 | O15: =tabula!O65 -> 928 | P15: =tabula!P65 -> 08 min. 16,743 | Q15: =tabula!Q65 -> 55 | R15: =tabula!R65 -> 09,032 sek.
C16: =tabula!C66 -> 59 | D16: =tabula!D66 -> Romuls un Rema | E16: =tabula!E66 -> 55 | F16: =tabula!F66 -> 133 | G16: =tabula!G66 -> 88 | H16: =tabula!H66 -> 85 | I16: =tabula!I66 -> 73 | J16: =tabula!J66 -> 132 | K16: =tabula!K66 -> 73 | L16: =tabula!L66 -> 150 | M16: =tabula!M66 -> 77 | N16: =tabula!N66 -> 58 | O16: =tabula!O66 -> 924 | P16: =tabula!P66 -> 08 min. 06,026 | Q16: =tabula!Q66 -> 52 | R16: =tabula!R66 -> 09,347 sek.
C17: =tabula!C67 -> 60 | D17: =tabula!D67 -> Stams | E17: =tabula!E67 -> 77 | F17: =tabula!F67 -> 141 | G17: =tabula!G67 -> 61 | H17: =tabula!H67 -> 81 | I17: =tabula!I67 -> 60 | J17: =tabula!J67 -> 115 | K17: =tabula!K67 -> 44 | L17: =tabula!L67 -> 169 | M17: =tabula!M67 -> 98 | N17: =tabula!N67 -> 75 | O17: =tabula!O67 -> 921 | P17: =tabula!P67 -> 09 min. 33,499 | Q17: =tabula!Q67 -> 55 | R17: =tabula!R67 -> 10,427 sek.
C18: =tabula!C68 -> 61 | D18: =tabula!D68 -> Elksnīši un Rozīši | E18: =tabula!E68 -> 63 | F18: =tabula!F68 -> 128 | G18: =tabula!G68 -> 103 | H18: =tabula!H68 -> 98 | I18: =tabula!I68 -> 98 | J18: =tabula!J68 -> 103 | K18: =tabula!K68 -> 40 | L18: =tabula!L68 -> 108 | M18: =tabula!M68 -> 87 | N18: =tabula!N68 -> 91 | O18: =tabula!O68 -> 919 | P18: =tabula!P68 -> 10 min. 03,952 | Q18: =tabula!Q68 -> 56 | R18: =tabula!R68 -> 10,785 sek.
C19: =tabula!C69 -> 62 | D19: =tabula!D69 -> Panzera vergi | E19: =tabula!E69 -> 96 | F19: =tabula!F69 -> 161 | G19: =tabula!G69 -> 56 | H19: =tabula!H69 -> 62 | I19: =tabula!I69 -> 63 | J19: =tabula!J69 -> 88 | K19: =tabula!K69 -> 87 | L19: =tabula!L69 -> 126 | M19: =tabula!M69 -> 99 | N19: =tabula!N69 -> 81 | O19: =tabula!O69 -> 919 | P19: =tabula!P69 -> 06 min. 40,524 | Q19: =tabula!Q69 -> 50 | R19: =tabula!R69 -> 08,010 sek.
C20: =tabula!C70 -> 63 | D20: =tabula!D70 -> VINCHIKI | E20: =tabula!E70 -> 63 | F20: =tabula!F70 -> 104 | G20: =tabula!G70 -> 88 | H20: =tabula!H70 -> 52 | I20: =tabula!I70 -> 80 | J20: =tabula!J70 -> 119 | K20: =tabula!K70 -> 75 | L20: =tabula!L70 -> 141 | M20: =tabula!M70 -> 63 | N20: =tabula!N70 -> 126 | O20: =tabula!O70 -> 911 | P20: =tabula!P70 -> 12 min. 01,413 | Q20: =tabula!Q70 -> 60 | R20: =tabula!R70 -> 12,024 sek.
C21: =tabula!C71 -> 64 | D21: =tabula!D71 -> Pufenes | E21: =tabula!E71 -> 86 | F21: =tabula!F71 -> 122 | G21: =tabula!G71 -> 89 | H21: =tabula!H71 -> 78 | I21: =tabula!I71 -> 85 | J21: =tabula!J71 -> 76 | K21: =tabula!K71 -> 86 | L21: =tabula!L71 -> 66 | M21: =tabula!M71 -> 122 | N21: =tabula!N71 -> 101 | O21: =tabula!O71 -> 911 | P21: =tabula!P71 -> 05 min. 49,949 | Q21: =tabula!Q71 -> 48 | R21: =tabula!R71 -> 07,291 sek.
C22: =tabula!C72 -> 65 | D22: =tabula!D72 -> Vistiņas | E22: =tabula!E72 -> 75 | F22: =tabula!F72 -> 112 | G22: =tabula!G72 -> 90 | H22: =tabula!H72 -> 61 | I22: =tabula!I72 -> 95 | J22: =tabula!J72 -> 98 | K22: =tabula!K72 -> 75 | L22: =tabula!L72 -> 104 | M22: =tabula!M72 -> 64 | N22: =tabula!N72 -> 136 | O22: =tabula!O72 -> 910 | P22: =tabula!P72 -> 10 min. 11,675 | Q22: =tabula!Q72 -> 56 | R22: =tabula!R72 -> 10,923 sek.
C23: =tabula!C73 -> 66 | D23: =tabula!D73 -> Swan | E23: =tabula!E73 -> 105 | F23: =tabula!F73 -> 155 | G23: =tabula!G73 -> 56 | H23: =tabula!H73 -> 100 | I23: =tabula!I73 -> 82 | J23: =tabula!J73 -> 102 | K23: =tabula!K73 -> 38 | L23: =tabula!L73 -> 84 | M23: =tabula!M73 -> 63 | N23: =tabula!N73 -> 125 | O23: =tabula!O73 -> 910 | P23: =tabula!P73 -> 08 min. 21,186 | Q23: =tabula!Q73 -> 52 | R23: =tabula!R73 -> 09,638 sek.
C24: =tabula!C74 -> 67 | D24: =tabula!D74 -> Pirmā Reize | E24: =tabula!E74 -> 37 | F24: =tabula!F74 -> 163 | G24: =tabula!G74 -> 85 | H24: =tabula!H74 -> 52 | I24: =tabula!I74 -> 54 | J24: =tabula!J74 -> 112 | K24: =tabula!K74 -> 100 | L24: =tabula!L74 -> 114 | M24: =tabula!M74 -> 82 | N24: =tabula!N74 -> 105 | O24: =tabula!O74 -> 904 | P24: =tabula!P74 -> 05 min. 46,665 | Q24: =tabula!Q74 -> 48 | R24: =tabula!R74 -> 07,222 sek.
C25: =tabula!C75 -> 68 | D25: =tabula!D75 -> Morgana | E25: =tabula!E75 -> 65 | F25: =tabula!F75 -> 147 | G25: =tabula!G75 -> 106 | H25: =tabula!H75 -> 79 | I25: =tabula!I75 -> 80 | J25: =tabula!J75 -> 27 | K25: =tabula!K75 -> 52 | L25: =tabula!L75 -> 110 | M25: =tabula!M75 -> 99 | N25: =tabula!N75 -> 133 | O25: =tabula!O75 -> 898 | P25: =tabula!P75 -> 08 min. 11,723 | Q25: =tabula!Q75 -> 53 | R25: =tabula!R75 -> 09,278 sek.
C26: =tabula!C76 -> 69 | D26: =tabula!D76 -> Vitrupe | E26: =tabula!E76 -> 101 | F26: =tabula!F76 -> 136 | G26: =tabula!G76 -> 58 | H26: =tabula!H76 -> 59 | I26: =tabula!I76 -> 71 | J26: =tabula!J76 -> 116 | K26: =tabula!K76 -> 104 | L26: =tabula!L76 -> 116 | M26: =tabula!M76 -> 72 | N26: =tabula!N76 -> 65 | O26: =tabula!O76 -> 898 | P26: =tabula!P76 -> 07 min. 29,768 | Q26: =tabula!Q76 -> 51 | R26: =tabula!R76 -> 08,819 sek.
C27: =tabula!C77 -> 70 | D27: =tabula!D77 -> Maģiskais vienradzis1 | E27: =tabula!E77 -> 99 | F27: =tabula!F77 -> 127 | G27: =tabula!G77 -> 93 | H27: =tabula!H77 -> 38 | I27: =tabula!I77 -> 59 | J27: =tabula!J77 -> 49 | K27: =tabula!K77 -> 48 | L27: =tabula!L77 -> 129 | M27: =tabula!M77 -> 121 | N27: =tabula!N77 -> 130 | O27: =tabula!O77 -> 893 | P27: =tabula!P77 -> 09 min. 07,141 | Q27: =tabula!Q77 -> 53 | R27: =tabula!R77 -> 10,323 sek.
C28: =tabula!C78 -> 71 | D28: =tabula!D78 -> Krasavčiki | E28: =tabula!E78 -> 83 | F28: =tabula!F78 -> 87 | G28: =tabula!G78 -> 87 | H28: =tabula!H78 -> 57 | I28: =tabula!I78 -> 70 | J28: =tabula!J78 -> 107 | K28: =tabula!K78 -> 70 | L28: =tabula!L78 -> 153 | M28: =tabula!M78 -> 49 | N28: =tabula!N78 -> 128 | O28: =tabula!O78 -> 891 | P28: =tabula!P78 -> 08 min. 47,288 | Q28: =tabula!Q78 -> 52 | R28: =tabula!R78 -> 10,140 sek.
C29: =tabula!C79 -> 72 | D29: =tabula!D79 -> Stipra rumkola | E29: =tabula!E79 -> 88 | F29: =tabula!F79 -> 115 | G29: =tabula!G79 -> 85 | H29: =tabula!H79 -> 56 | I29: =tabula!I79 -> 65 | J29: =tabula!J79 -> 96 | K29: =tabula!K79 -> 86 | L29: =tabula!L79 -> 148 | M29: =tabula!M79 -> 116 | N29: =tabula!N79 -> 29 | O29: =tabula!O79 -> 884 | P29: =tabula!P79 -> 08 min. 14,463 | Q29: =tabula!Q79 -> 51 | R29: =tabula!R79 -> 09,695 sek.
C30: =tabula!C80 -> 73 | D30: =tabula!D80 -> Stirninieki | E30: =tabula!E80 -> 78 | F30: =tabula!F80 -> 144 | G30: =tabula!G80 -> 79 | H30: =tabula!H80 -> 90 | I30: =tabula!I80 -> 80 | J30: =tabula!J80 -> 93 | K30: =tabula!K80 -> 35 | L30: =tabula!L80 -> 146 | M30: =tabula!M80 -> 102 | N30: =tabula!N80 -> 36 | O30: =tabula!O80 -> 883 | P30: =tabula!P80 -> 09 min. 15,258 | Q30: =tabula!Q80 -> 53 | R30: =tabula!R80 -> 10,477 sek.
C31: =tabula!C81 -> 74 | D31: =tabula!D81 -> Salacas Banāni | E31: =tabula!E81 -> 57 | F31: =tabula!F81 -> 172 | G31: =tabula!G81 -> 76 | H31: =tabula!H81 -> 90 | I31: =tabula!I81 -> 68 | J31: =tabula!J81 -> 132 | K31: =tabula!K81 -> -13 | L31: =tabula!L81 -> 157 | M31: =tabula!M81 -> 98 | N31: =tabula!N81 -> 46 | O31: =tabula!O81 -> 883 | P31: =tabula!P81 -> 05 min. 52,655 | Q31: =tabula!Q81 -> 49 | R31: =tabula!R81 -> 07,197 sek.
C32: =tabula!C82 -> 75 | D32: =tabula!D82 -> roshuks | E32: =tabula!E82 -> 61 | F32: =tabula!F82 -> 139 | G32: =tabula!G82 -> 110 | H32: =tabula!H82 -> 57 | I32: =tabula!I82 -> 70 | J32: =tabula!J82 -> 43 | K32: =tabula!K82 -> 20 | L32: =tabula!L82 -> 140 | M32: =tabula!M82 -> 114 | N32: =tabula!N82 -> 125 | O32: =tabula!O82 -> 879 | P32: =tabula!P82 -> 10 min. 03,620 | Q32: =tabula!Q82 -> 54 | R32: =tabula!R82 -> 11,178 sek.
C33: =tabula!C83 -> 76 | D33: =tabula!D83 -> Kociņi | E33: =tabula!E83 -> 89 | F33: =tabula!F83 -> 119 | G33: =tabula!G83 -> 76 | H33: =tabula!H83 -> 63 | I33: =tabula!I83 -> 70 | J33: =tabula!J83 -> 62 | K33: =tabula!K83 -> 81 | L33: =tabula!L83 -> 104 | M33: =tabula!M83 -> 82 | N33: =tabula!N83 -> 123 | O33: =tabula!O83 -> 869 | P33: =tabula!P83 -> 11 min. 29,509 | Q33: =tabula!Q83 -> 57 | R33: =tabula!R83 -> 12,097 sek.
C34: =tabula!C84 -> 77 | D34: =tabula!D84 -> Runcis-pilns-puncis | E34: =tabula!E84 -> 99 | F34: =tabula!F84 -> 143 | G34: =tabula!G84 -> 76 | H34: =tabula!H84 -> 56 | I34: =tabula!I84 -> 61 | J34: =tabula!J84 -> 120 | K34: =tabula!K84 -> 48 | L34: =tabula!L84 -> 133 | M34: =tabula!M84 -> 108 | N34: =tabula!N84 -> 22 | O34: =tabula!O84 -> 866 | P34: =tabula!P84 -> 07 min. 18,473 | Q34: =tabula!Q84 -> 50 | R34: =tabula!R84 -> 08,769 sek.
C35: =tabula!C85 -> 78 | D35: =tabula!D85 -> KISS-D | E35: =tabula!E85 -> 53 | F35: =tabula!F85 -> 116 | G35: =tabula!G85 -> 77 | H35: =tabula!H85 -> 82 | I35: =tabula!I85 -> 63 | J35: =tabula!J85 -> 115 | K35: =tabula!K85 -> 6 | L35: =tabula!L85 -> 121 | M35: =tabula!M85 -> 103 | N35: =tabula!N85 -> 125 | O35: =tabula!O85 -> 861 | P35: =tabula!P85 -> 07 min. 35,690 | Q35: =tabula!Q85 -> 50 | R35: =tabula!R85 -> 09,114 sek.
C36: =tabula!C86 -> 79 | D36: =tabula!D86 -> Plakanciema vafelītes | E36: =tabula!E86 -> 34 | F36: =tabula!F86 -> 104 | G36: =tabula!G86 -> 82 | H36: =tabula!H86 -> 72 | I36: =tabula!I86 -> 96 | J36: =tabula!J86 -> 88 | K36: =tabula!K86 -> 83 | L36: =tabula!L86 -> 99 | M36: =tabula!M86 -> 67 | N36: =tabula!N86 -> 133 | O36: =tabula!O86 -> 858 | P36: =tabula!P86 -> 06 min. 03,561 | Q36: =tabula!Q86 -> 47 | R36: =tabula!R86 -> 07,735 sek.
C37: =tabula!C87 -> 80 | D37: =tabula!D87 -> Pierīgas Kalniņi | E37: =tabula!E87 -> 11 | F37: =tabula!F87 -> 201 | G37: =tabula!G87 -> 68 | H37: =tabula!H87 -> 79 | I37: =tabula!I87 -> 76 | J37: =tabula!J87 -> 83 | K37: =tabula!K87 -> 103 | L37: =tabula!L87 -> 147 | M37: =tabula!M87 -> 72 | N37: =tabula!N87 -> 18 | O37: =tabula!O87 -> 858 | P37: =tabula!P87 -> 05 min. 04,667 | Q37: =tabula!Q87 -> 46 | R37: =tabula!R87 -> 06,623 sek.
C38: =tabula!C88 -> 81 | D38: =tabula!D88 -> DRAUGI,RADI UN ROSOLS | E38: =tabula!E88 -> 79 | F38: =tabula!F88 -> 154 | G38: =tabula!G88 -> 95 | H38: =tabula!H88 -> 69 | I38: =tabula!I88 -> 60 | J38: =tabula!J88 -> 80 | K38: =tabula!K88 -> 57 | L38: =tabula!L88 -> 150 | M38: =tabula!M88 -> 39 | N38: =tabula!N88 -> 73 | O38: =tabula!O88 -> 856 | P38: =tabula!P88 -> 07 min. 15,685 | Q38: =tabula!Q88 -> 48 | R38: =tabula!R88 -> 09,077 sek.
C39: =tabula!C89 -> 82 | D39: =tabula!D89 -> RODENPOIS | E39: =tabula!E89 -> 68 | F39: =tabula!F89 -> 101 | G39: =tabula!G89 -> 87 | H39: =tabula!H89 -> 42 | I39: =tabula!I89 -> 77 | J39: =tabula!J89 -> 112 | K39: =tabula!K89 -> 2 | L39: =tabula!L89 -> 140 | M39: =tabula!M89 -> 90 | N39: =tabula!N89 -> 135 | O39: =tabula!O89 -> 854 | P39: =tabula!P89 -> 06 min. 46,637 | Q39: =tabula!Q89 -> 48 | R39: =tabula!R89 -> 08,472 sek.
C40: =tabula!C90 -> 83 | D40: =tabula!D90 -> Sanāca | E40: =tabula!E90 -> 32 | F40: =tabula!F90 -> 100 | G40: =tabula!G90 -> 102 | H40: =tabula!H90 -> 88 | I40: =tabula!I90 -> 77 | J40: =tabula!J90 -> 108 | K40: =tabula!K90 -> 11 | L40: =tabula!L90 -> 104 | M40: =tabula!M90 -> 124 | N40: =tabula!N90 -> 102 | O40: =tabula!O90 -> 848 | P40: =tabula!P90 -> 06 min. 23,753 | Q40: =tabula!Q90 -> 48 | R40: =tabula!R90 -> 07,995 sek.
C41: =tabula!C91 -> 84 | D41: =tabula!D91 -> VētrasPutns | E41: =tabula!E91 -> 97 | F41: =tabula!F91 -> 149 | G41: =tabula!G91 -> 104 | H41: =tabula!H91 -> 71 | I41: =tabula!I91 -> 81 | J41: =tabula!J91 -> 105 | K41: =tabula!K91 -> 84 | L41: =tabula!L91 -> 102 | M41: =tabula!M91 -> 40 | N41: =tabula!N91 -> 12 | O41: =tabula!O91 -> 845 | P41: =tabula!P91 -> 07 min. 49,743 | Q41: =tabula!Q91 -> 49 | R41: =tabula!R91 -> 09,587 sek.
C42: =tabula!C92 -> 85 | D42: =tabula!D92 -> Two of a kind | E42: =tabula!E92 -> 109 | F42: =tabula!F92 -> 79 | G42: =tabula!G92 -> 81 | H42: =tabula!H92 -> 55 | I42: =tabula!I92 -> 65 | J42: =tabula!J92 -> 91 | K42: =tabula!K92 -> 2 | L42: =tabula!L92 -> 122 | M42: =tabula!M92 -> 109 | N42: =tabula!N92 -> 132 | O42: =tabula!O92 -> 845 | P42: =tabula!P92 -> 07 min. 14,747 | Q42: =tabula!Q92 -> 48 | R42: =tabula!R92 -> 09,057 sek.
C43: =tabula!C93 -> 86 | D43: =tabula!D93 -> GUNTIS KULAKĀ RĀVIS | E43: =tabula!E93 -> 66 | F43: =tabula!F93 -> 164 | G43: =tabula!G93 -> 65 | H43: =tabula!H93 -> 82 | I43: =tabula!I93 -> 46 | J43: =tabula!J93 -> 65 | K43: =tabula!K93 -> 80 | L43: =tabula!L93 -> 158 | M43: =tabula!M93 -> 66 | N43: =tabula!N93 -> 52 | O43: =tabula!O93 -> 844 | P43: =tabula!P93 -> 05 min. 51,634 | Q43: =tabula!Q93 -> 46 | R43: =tabula!R93 -> 07,644 sek.
C44: =tabula!C94 -> 87 | D44: =tabula!D94 -> Baltimoni | E44: =tabula!E94 -> 100 | F44: =tabula!F94 -> 142 | G44: =tabula!G94 -> 73 | H44: =tabula!H94 -> 76 | I44: =tabula!I94 -> 63 | J44: =tabula!J94 -> 54 | K44: =tabula!K94 -> 44 | L44: =tabula!L94 -> 126 | M44: =tabula!M94 -> 102 | N44: =tabula!N94 -> 58 | O44: =tabula!O94 -> 838 | P44: =tabula!P94 -> 08 min. 00,206 | Q44: =tabula!Q94 -> 50 | R44: =tabula!R94 -> 09,604 sek.
C45: =tabula!C95 -> 88 | D45: =tabula!D95 -> Gatiņa dienasgrāmata | E45: =tabula!E95 -> 99 | F45: =tabula!F95 -> 142 | G45: =tabula!G95 -> 46 | H45: =tabula!H95 -> 81 | I45: =tabula!I95 -> 46 | J45: =tabula!J95 -> 133 | K45: =tabula!K95 -> -9 | L45: =tabula!L95 -> 170 | M45: =tabula!M95 -> 93 | N45: =tabula!N95 -> 37 | O45: =tabula!O95 -> 838 | P45: =tabula!P95 -> 05 min. 53,684 | Q45: =tabula!Q95 -> 46 | R45: =tabula!R95 -> 07,689 sek.
C46: =tabula!C96 -> 89 | D46: =tabula!D96 -> Rieksti2 | E46: =tabula!E96 -> 72 | F46: =tabula!F96 -> 123 | G46: =tabula!G96 -> 42 | H46: =tabula!H96 -> 50 | I46: =tabula!I96 -> 99 | J46: =tabula!J96 -> 81 | K46: =tabula!K96 -> 98 | L46: =tabula!L96 -> 139 | M46: =tabula!M96 -> 83 | N46: =tabula!N96 -> 50 | O46: =tabula!O96 -> 837 | P46: =tabula!P96 -> 06 min. 25,446 | Q46: =tabula!Q96 -> 46 | R46: =tabula!R96 -> 08,379 sek.
C47: =tabula!C97 -> 90 | D47: =tabula!D97 -> Kristaps | E47: =tabula!E97 -> 107 | F47: =tabula!F97 -> 150 | G47: =tabula!G97 -> 43 | H47: =tabula!H97 -> 51 | I47: =tabula!I97 -> 77 | J47: =tabula!J97 -> 83 | K47: =tabula!K97 -> 36 | L47: =tabula!L97 -> 73 | M47: =tabula!M97 -> 102 | N47: =tabula!N97 -> 113 | O47: =tabula!O97 -> 835 | P47: =tabula!P97 -> 08 min. 17,047 | Q47: =tabula!Q97 -> 51 | R47: =tabula!R97 -> 09,746 sek.
C48: =tabula!C98 -> 91 | D48: =tabula!D98 -> BĀZES FAMILY | E48: =tabula!E98 -> 94 | F48: =tabula!F98 -> 84 | G48: =tabula!G98 -> 58 | H48: =tabula!H98 -> 67 | I48: =tabula!I98 -> 72 | J48: =tabula!J98 -> 41 | K48: =tabula!K98 -> 71 | L48: =tabula!L98 -> 142 | M48: =tabula!M98 -> 71 | N48: =tabula!N98 -> 133 | O48: =tabula!O98 -> 833 | P48: =tabula!P98 -> 08 min. 09,051 | Q48: =tabula!Q98 -> 49 | R48: =tabula!R98 -> 09,981 sek.
C49: =tabula!C99 -> 92 | D49: =tabula!D99 -> INŽENIERI | E49: =tabula!E99 -> 75 | F49: =tabula!F99 -> 115 | G49: =tabula!G99 -> 56 | H49: =tabula!H99 -> 56 | I49: =tabula!I99 -> 80 | J49: =tabula!J99 -> 107 | K49: =tabula!K99 -> 84 | L49: =tabula!L99 -> 129 | M49: =tabula!M99 -> 81 | N49: =tabula!N99 -> 42 | O49: =tabula!O99 -> 825 | P49: =tabula!P99 -> 06 min. 23,760 | Q49: =tabula!Q99 -> 46 | R49: =tabula!R99 -> 08,343 sek.
C50: =tabula!C100 -> 93 | D50: =tabula!D100 -> Valmieras Straume ‍⬛ | E50: =tabula!E100 -> 84 | F50: =tabula!F100 -> 95 | G50: =tabula!G100 -> 113 | H50: =tabula!H100 -> 51 | I50: =tabula!I100 -> 66 | J50: =tabula!J100 -> 113 | K50: =tabula!K100 -> 7 | L50: =tabula!L100 -> 137 | M50: =tabula!M100 -> 112 | N50: =tabula!N100 -> 41 | O50: =tabula!O100 -> 819 | P50: =tabula!P100 -> 06 min. 39,513 | Q50: =tabula!Q100 -> 46 | R50: =tabula!R100 -> 08,685 sek.
C51: =tabula!C101 -> 94 | D51: =tabula!D101 -> Labākās | E51: =tabula!E101 -> 47 | F51: =tabula!F101 -> 147 | G51: =tabula!G101 -> 82 | H51: =tabula!H101 -> 66 | I51: =tabula!I101 -> 65 | J51: =tabula!J101 -> 111 | K51: =tabula!K101 -> 75 | L51: =tabula!L101 -> 70 | M51: =tabula!M101 -> 65 | N51: =tabula!N101 -> 90 | O51: =tabula!O101 -> 818 | P51: =tabula!P101 -> 09 min. 14,548 | Q51: =tabula!Q101 -> 50 | R51: =tabula!R101 -> 11,091 sek.
C52: =tabula!C102 -> 95 | D52: =tabula!D102 -> Terase | E52: =tabula!E102 -> 54 | F52: =tabula!F102 -> 100 | G52: =tabula!G102 -> 85 | H52: =tabula!H102 -> 87 | I52: =tabula!I102 -> 69 | J52: =tabula!J102 -> 93 | K52: =tabula!K102 -> 8 | L52: =tabula!L102 -> 100 | M52: =tabula!M102 -> 82 | N52: =tabula!N102 -> 137 | O52: =tabula!O102 -> 815 | P52: =tabula!P102 -> 09 min. 35,254 | Q52: =tabula!Q102 -> 51 | R52: =tabula!R102 -> 11,279 sek.
C53: =tabula!C103 -> 96 | D53: =tabula!D103 -> Smilšu ielas samuraji | E53: =tabula!E103 -> 105 | F53: =tabula!F103 -> 92 | G53: =tabula!G103 -> 22 | H53: =tabula!H103 -> 68 | I53: =tabula!I103 -> 96 | J53: =tabula!J103 -> 104 | K53: =tabula!K103 -> 0 | L53: =tabula!L103 -> 156 | M53: =tabula!M103 -> 40 | N53: =tabula!N103 -> 132 | O53: =tabula!O103 -> 815 | P53: =tabula!P103 -> 06 min. 48,956 | Q53: =tabula!Q103 -> 45 | R53: =tabula!R103 -> 09,088 sek.
C54: =tabula!C104 -> 97 | D54: =tabula!D104 -> MOPŠI&CO | E54: =tabula!E104 -> 44 | F54: =tabula!F104 -> 88 | G54: =tabula!G104 -> 98 | H54: =tabula!H104 -> 66 | I54: =tabula!I104 -> 70 | J54: =tabula!J104 -> 61 | K54: =tabula!K104 -> 56 | L54: =tabula!L104 -> 111 | M54: =tabula!M104 -> 97 | N54: =tabula!N104 -> 122 | O54: =tabula!O104 -> 813 | P54: =tabula!P104 -> 09 min. 51,859 | Q54: =tabula!Q104 -> 51 | R54: =tabula!R104 -> 11,605 sek.
C55: =tabula!C105 -> 98 | D55: =tabula!D105 -> Yuki | E55: =tabula!E105 -> 53 | F55: =tabula!F105 -> 174 | G55: =tabula!G105 -> 59 | H55: =tabula!H105 -> 67 | I55: =tabula!I105 -> 63 | J55: =tabula!J105 -> 71 | K55: =tabula!K105 -> 30 | L55: =tabula!L105 -> 148 | M55: =tabula!M105 -> 123 | N55: =tabula!N105 -> 25 | O55: =tabula!O105 -> 813 | P55: =tabula!P105 -> 08 min. 01,440 | Q55: =tabula!Q105 -> 48 | R55: =tabula!R105 -> 10,030 sek.
C56: =tabula!C106 -> 99 | D56: =tabula!D106 -> Viesis | E56: =tabula!E106 -> 111 | F56: =tabula!F106 -> 171 | G56: =tabula!G106 -> 34 | H56: =tabula!H106 -> 87 | I56: =tabula!I106 -> 87 | J56: =tabula!J106 -> 96 | K56: =tabula!K106 -> -11 | L56: =tabula!L106 -> 187 | M56: =tabula!M106 -> 44 | N56: =tabula!N106 -> 0 | O56: =tabula!O106 -> 806 | P56: =tabula!P106 -> 04 min. 26,826 | Q56: =tabula!Q106 -> 43 | R56: =tabula!R106 -> 06,205 sek.
C57: =tabula!C107 -> 100 | D57: =tabula!D107 -> Kristofers X & Aurēlijas ģimene | E57: =tabula!E107 -> 71 | F57: =tabula!F107 -> 103 | G57: =tabula!G107 -> 72 | H57: =tabula!H107 -> 74 | I57: =tabula!I107 -> 45 | J57: =tabula!J107 -> 72 | K57: =tabula!K107 -> 48 | L57: =tabula!L107 -> 150 | M57: =tabula!M107 -> 77 | N57: =tabula!N107 -> 86 | O57: =tabula!O107 -> 798 | P57: =tabula!P107 -> 08 min. 44,877 | Q57: =tabula!Q107 -> 49 | R57: =tabula!R107 -> 10,712 sek.
C59: LIELDRAUGS ATBALSTĪTĀJI

Sheet 101-150
C2: =tabula!C2 -> "Ģimeņu viktorīna" (tiešsaistē / vebinārā) | 2025.gada 22.februāris
B3: Grupa | C3: # | D3: Dalībnieks | Raunds | Tēma | E3: 1 | F3: 2 | G3: 3 | H3: 4 | I3: 5 | J3: 6 | K3: 7 | L3: 8 | M3: 9 | N3: 10 | O3: KOPĀ | P3: Laiks kopā uz pareizajām atbildēm | Q3: Pareizās atbildes (max) | R3: Vid.laiks uz 1 pareizo atb.
E4: =tabula!E4 -> Pavediens | F4: =tabula!F4 -> Ekspresis | G4: =tabula!G4 -> Vizuālais | H4: =tabula!H4 -> Burtu mīkla | I4: =tabula!I4 -> Ķēde | J4: =tabula!J4 -> Latviešu filmas no viena kadra | K4: =tabula!K4 -> Risks | L4: =tabula!L4 -> Kas kopīgs? | M4: =tabula!M4 -> Liekais pazūd | N4: =tabula!N4 -> Audio
D5: Max punkti raundā (bez bonusiem) | E5: =tabula!E5 -> 150 | F5: =tabula!F5 -> 240 | G5: =tabula!G5 -> 150 | H5: =tabula!H5 -> 162 | I5: =tabula!I5 -> 150 | J5: =tabula!J5 -> 150 | K5: =tabula!K5 -> 120 | L5: =tabula!L5 -> 180 | M5: =tabula!M5 -> 132 | N5: =tabula!N5 -> 150 | O5: =SUM(E5:N5) -> 1584
C6: Jautājumi | E6: =tabula!E6 -> 6 | F6: =tabula!F6 -> 12 | G6: =tabula!G6 -> 6 | H6: =tabula!H6 -> 6 | I6: =tabula!I6 -> 8 | J6: =tabula!J6 -> 6 | K6: =tabula!K6 -> 6 | L6: =tabula!L6 -> 8 | M6: =tabula!M6 -> 6 | N6: =tabula!N6 -> 6 | Q6: =SUM(E6:N6) -> 70
D7: Vidējie rādītāji | E7: =tabula!E7 -> 76.7 | F7: =tabula!F7 -> 130.6 | G7: =tabula!G7 -> 73.5 | H7: =tabula!H7 -> 67.5 | I7: =tabula!I7 -> 70.1 | J7: =tabula!J7 -> 88.8 | K7: =tabula!K7 -> 56.4 | L7: =tabula!L7 -> 124.4 | M7: =tabula!M7 -> 83.2 | N7: =tabula!N7 -> 79.1 | O7: =tabula!O7 -> 850.2 | P7: =tabula!P7 -> - | Q7: =tabula!Q7 -> 48.1 | R7: =tabula!R7 -> -
B8: 3 | C8: =tabula!C108 -> 101 | D8: =tabula!D108 -> ŽizaPrū | E8: =tabula!E108 -> 55 | F8: =tabula!F108 -> 152 | G8: =tabula!G108 -> 55 | H8: =tabula!H108 -> 87 | I8: =tabula!I108 -> 86 | J8: =tabula!J108 -> 42 | K8: =tabula!K108 -> 100 | L8: =tabula!L108 -> 126 | M8: =tabula!M108 -> 59 | N8: =tabula!N108 -> 33 | O8: =tabula!O108 -> 795 | P8: =tabula!P108 -> 05 min. 46,944 | Q8: =tabula!Q108 -> 44 | R8: =tabula!R108 -> 07,885 sek.
B9: 1 | C9: =tabula!C109 -> 102 | D9: =tabula!D109 -> Hugo | E9: =tabula!E109 -> 41 | F9: =tabula!F109 -> 142 | G9: =tabula!G109 -> 43 | H9: =tabula!H109 -> 69 | I9: =tabula!I109 -> 68 | J9: =tabula!J109 -> 109 | K9: =tabula!K109 -> 6 | L9: =tabula!L109 -> 114 | M9: =tabula!M109 -> 72 | N9: =tabula!N109 -> 124 | O9: =tabula!O109 -> 788 | P9: =tabula!P109 -> 04 min. 07,942 | Q9: =tabula!Q109 -> 41 | R9: =tabula!R109 -> 06,047 sek.
B10: 1 | C10: =tabula!C110 -> 103 | D10: =tabula!D110 -> Andris un divi Voltēri | E10: =tabula!E110 -> 80 | F10: =tabula!F110 -> 0 | G10: =tabula!G110 -> 70 | H10: =tabula!H110 -> 83 | I10: =tabula!I110 -> 93 | J10: =tabula!J110 -> 79 | K10: =tabula!K110 -> -10 | L10: =tabula!L110 -> 190 | M10: =tabula!M110 -> 112 | N10: =tabula!N110 -> 87 | O10: =tabula!O110 -> 784 | P10: =tabula!P110 -> 06 min. 31,819 | Q10: =tabula!Q110 -> 43 | R10: =tabula!R110 -> 09,112 sek.
B11: 3 | C11: =tabula!C111 -> 104 | D11: =tabula!D111 -> Smilšu rukši | E11: =tabula!E111 -> 92 | F11: =tabula!F111 -> 143 | G11: =tabula!G111 -> 30 | H11: =tabula!H111 -> 79 | I11: =tabula!I111 -> 60 | J11: =tabula!J111 -> 77 | K11: =tabula!K111 -> 30 | L11: =tabula!L111 -> 120 | M11: =tabula!M111 -> 73 | N11: =tabula!N111 -> 77 | O11: =tabula!O111 -> 781 | P11: =tabula!P111 -> 08 min. 51,824 | Q11: =tabula!Q111 -> 48 | R11: =tabula!R111 -> 11,080 sek.
B12: 1 | C12: =tabula!C112 -> 105 | D12: =tabula!D112 -> Inspektors KAPIBARA | E12: =tabula!E112 -> 0 | F12: =tabula!F112 -> 0 | G12: =tabula!G112 -> 48 | H12: =tabula!H112 -> 94 | I12: =tabula!I112 -> 83 | J12: =tabula!J112 -> 122 | K12: =tabula!K112 -> 32 | L12: =tabula!L112 -> 168 | M12: =tabula!M112 -> 121 | N12: =tabula!N112 -> 110 | O12: =tabula!O112 -> 778 | P12: =tabula!P112 -> 07 min. 12,029 | Q12: =tabula!Q112 -> 43 | R12: =tabula!R112 -> 10,047 sek.
B13: 3 | C13: =tabula!C113 -> 106 | D13: =tabula!D113 -> AlmaDJV | E13: =tabula!E113 -> 87 | F13: =tabula!F113 -> 120 | G13: =tabula!G113 -> 49 | H13: =tabula!H113 -> 80 | I13: =tabula!I113 -> 45 | J13: =tabula!J113 -> 128 | K13: =tabula!K113 -> 29 | L13: =tabula!L113 -> 102 | M13: =tabula!M113 -> 68 | N13: =tabula!N113 -> 66 | O13: =tabula!O113 -> 774 | P13: =tabula!P113 -> 06 min. 49,337 | Q13: =tabula!Q113 -> 45 | R13: =tabula!R113 -> 09,096 sek.
B14: 1 | C14: =tabula!C114 -> 107 | D14: =tabula!D114 -> Opelti | E14: =tabula!E114 -> 65 | F14: =tabula!F114 -> 122 | G14: =tabula!G114 -> 73 | H14: =tabula!H114 -> 67 | I14: =tabula!I114 -> 64 | J14: =tabula!J114 -> 45 | K14: =tabula!K114 -> 70 | L14: =tabula!L114 -> 105 | M14: =tabula!M114 -> 78 | N14: =tabula!N114 -> 84 | O14: =tabula!O114 -> 773 | P14: =tabula!P114 -> 06 min. 51,063 | Q14: =tabula!Q114 -> 44 | R14: =tabula!R114 -> 09,342 sek.
C15: =tabula!C115 -> 108 | D15: =tabula!D115 -> Ruma Šķiņķis | E15: =tabula!E115 -> 110 | F15: =tabula!F115 -> 148 | G15: =tabula!G115 -> 89 | H15: =tabula!H115 -> 59 | I15: =tabula!I115 -> 45 | J15: =tabula!J115 -> 54 | K15: =tabula!K115 -> 109 | L15: =tabula!L115 -> 86 | M15: =tabula!M115 -> 54 | N15: =tabula!N115 -> 13 | O15: =tabula!O115 -> 767 | P15: =tabula!P115 -> 04 min. 05,980 | Q15: =tabula!Q115 -> 40 | R15: =tabula!R115 -> 06,150 sek.
C16: =tabula!C116 -> 109 | D16: =tabula!D116 -> Barakudas | E16: =tabula!E116 -> 67 | F16: =tabula!F116 -> 117 | G16: =tabula!G116 -> 53 | H16: =tabula!H116 -> 91 | I16: =tabula!I116 -> 89 | J16: =tabula!J116 -> 64 | K16: =tabula!K116 -> 51 | L16: =tabula!L116 -> 120 | M16: =tabula!M116 -> 52 | N16: =tabula!N116 -> 62 | O16: =tabula!O116 -> 766 | P16: =tabula!P116 -> 08 min. 20,018 | Q16: =tabula!Q116 -> 46 | R16: =tabula!R116 -> 10,870 sek.
C17: =tabula!C117 -> 110 | D17: =tabula!D117 -> LBG | E17: =tabula!E117 -> 68 | F17: =tabula!F117 -> 94 | G17: =tabula!G117 -> 74 | H17: =tabula!H117 -> 46 | I17: =tabula!I117 -> 80 | J17: =tabula!J117 -> 108 | K17: =tabula!K117 -> 51 | L17: =tabula!L117 -> 145 | M17: =tabula!M117 -> 90 | N17: =tabula!N117 -> 6 | O17: =tabula!O117 -> 762 | P17: =tabula!P117 -> 09 min. 13,688 | Q17: =tabula!Q117 -> 47 | R17: =tabula!R117 -> 11,781 sek.
C18: =tabula!C118 -> 111 | D18: =tabula!D118 -> CORBY LATVIESI | E18: =tabula!E118 -> 73 | F18: =tabula!F118 -> 109 | G18: =tabula!G118 -> 123 | H18: =tabula!H118 -> 72 | I18: =tabula!I118 -> 65 | J18: =tabula!J118 -> 66 | K18: =tabula!K118 -> 49 | L18: =tabula!L118 -> 114 | M18: =tabula!M118 -> 62 | N18: =tabula!N118 -> 28 | O18: =tabula!O118 -> 761 | P18: =tabula!P118 -> 06 min. 10,501 | Q18: =tabula!Q118 -> 42 | R18: =tabula!R118 -> 08,821 sek.
C19: =tabula!C119 -> 112 | D19: =tabula!D119 -> Roņi | E19: =tabula!E119 -> 73 | F19: =tabula!F119 -> 98 | G19: =tabula!G119 -> 78 | H19: =tabula!H119 -> 44 | I19: =tabula!I119 -> 43 | J19: =tabula!J119 -> 42 | K19: =tabula!K119 -> 91 | L19: =tabula!L119 -> 91 | M19: =tabula!M119 -> 66 | N19: =tabula!N119 -> 129 | O19: =tabula!O119 -> 755 | P19: =tabula!P119 -> 06 min. 41,633 | Q19: =tabula!Q119 -> 43 | R19: =tabula!R119 -> 09,340 sek.
C20: =tabula!C120 -> 113 | D20: =tabula!D120 -> Vecie āži | E20: =tabula!E120 -> 49 | F20: =tabula!F120 -> 132 | G20: =tabula!G120 -> 56 | H20: =tabula!H120 -> 50 | I20: =tabula!I120 -> 64 | J20: =tabula!J120 -> 102 | K20: =tabula!K120 -> -12 | L20: =tabula!L120 -> 143 | M20: =tabula!M120 -> 70 | N20: =tabula!N120 -> 97 | O20: =tabula!O120 -> 751 | P20: =tabula!P120 -> 06 min. 42,704 | Q20: =tabula!Q120 -> 44 | R20: =tabula!R120 -> 09,152 sek.
C21: =tabula!C121 -> 114 | D21: =tabula!D121 -> Ģimenīte | E21: =tabula!E121 -> 62 | F21: =tabula!F121 -> 137 | G21: =tabula!G121 -> 44 | H21: =tabula!H121 -> 44 | I21: =tabula!I121 -> 50 | J21: =tabula!J121 -> 82 | K21: =tabula!K121 -> 69 | L21: =tabula!L121 -> 132 | M21: =tabula!M121 -> 96 | N21: =tabula!N121 -> 34 | O21: =tabula!O121 -> 750 | P21: =tabula!P121 -> 07 min. 49,490 | Q21: =tabula!Q121 -> 45 | R21: =tabula!R121 -> 10,433 sek.
C22: =tabula!C122 -> 115 | D22: =tabula!D122 -> RATATUJII | E22: =tabula!E122 -> 65 | F22: =tabula!F122 -> 115 | G22: =tabula!G122 -> 61 | H22: =tabula!H122 -> 33 | I22: =tabula!I122 -> 50 | J22: =tabula!J122 -> 121 | K22: =tabula!K122 -> 62 | L22: =tabula!L122 -> 120 | M22: =tabula!M122 -> 97 | N22: =tabula!N122 -> 24 | O22: =tabula!O122 -> 748 | P22: =tabula!P122 -> 08 min. 30,788 | Q22: =tabula!Q122 -> 48 | R22: =tabula!R122 -> 10,641 sek.
C23: =tabula!C123 -> 116 | D23: =tabula!D123 -> ORHIDEJAS | E23: =tabula!E123 -> 62 | F23: =tabula!F123 -> 107 | G23: =tabula!G123 -> 106 | H23: =tabula!H123 -> 39 | I23: =tabula!I123 -> 50 | J23: =tabula!J123 -> 68 | K23: =tabula!K123 -> 54 | L23: =tabula!L123 -> 72 | M23: =tabula!M123 -> 63 | N23: =tabula!N123 -> 124 | O23: =tabula!O123 -> 745 | P23: =tabula!P123 -> 08 min. 19,041 | Q23: =tabula!Q123 -> 46 | R23: =tabula!R123 -> 10,849 sek.
C24: =tabula!C124 -> 117 | D24: =tabula!D124 -> Stepin | E24: =tabula!E124 -> 48 | F24: =tabula!F124 -> 96 | G24: =tabula!G124 -> 67 | H24: =tabula!H124 -> 57 | I24: =tabula!I124 -> 73 | J24: =tabula!J124 -> 72 | K24: =tabula!K124 -> 62 | L24: =tabula!L124 -> 160 | M24: =tabula!M124 -> 26 | N24: =tabula!N124 -> 80 | O24: =tabula!O124 -> 741 | P24: =tabula!P124 -> 08 min. 17,344 | Q24: =tabula!Q124 -> 45 | R24: =tabula!R124 -> 11,052 sek.
C25: =tabula!C125 -> 118 | D25: =tabula!D125 -> Tiltakalni | E25: =tabula!E125 -> 48 | F25: =tabula!F125 -> 128 | G25: =tabula!G125 -> 60 | H25: =tabula!H125 -> 41 | I25: =tabula!I125 -> 60 | J25: =tabula!J125 -> 61 | K25: =tabula!K125 -> 23 | L25: =tabula!L125 -> 139 | M25: =tabula!M125 -> 55 | N25: =tabula!N125 -> 126 | O25: =tabula!O125 -> 741 | P25: =tabula!P125 -> 08 min. 40,651 | Q25: =tabula!Q125 -> 45 | R25: =tabula!R125 -> 11,570 sek.
C26: =tabula!C126 -> 119 | D26: =tabula!D126 -> Madeira | E26: =tabula!E126 -> 41 | F26: =tabula!F126 -> 112 | G26: =tabula!G126 -> 69 | H26: =tabula!H126 -> 61 | I26: =tabula!I126 -> 72 | J26: =tabula!J126 -> 98 | K26: =tabula!K126 -> 11 | L26: =tabula!L126 -> 82 | M26: =tabula!M126 -> 70 | N26: =tabula!N126 -> 124 | O26: =tabula!O126 -> 740 | P26: =tabula!P126 -> 06 min. 54,144 | Q26: =tabula!Q126 -> 43 | R26: =tabula!R126 -> 09,631 sek.
C27: =tabula!C127 -> 120 | D27: =tabula!D127 -> Virķēni | E27: =tabula!E127 -> 73 | F27: =tabula!F127 -> 124 | G27: =tabula!G127 -> 56 | H27: =tabula!H127 -> 80 | I27: =tabula!I127 -> 43 | J27: =tabula!J127 -> 63 | K27: =tabula!K127 -> 45 | L27: =tabula!L127 -> 151 | M27: =tabula!M127 -> 84 | N27: =tabula!N127 -> 20 | O27: =tabula!O127 -> 739 | P27: =tabula!P127 -> 04 min. 39,977 | Q27: =tabula!Q127 -> 40 | R27: =tabula!R127 -> 06,999 sek.
C28: =tabula!C128 -> 121 | D28: =tabula!D128 -> Ozoputni | E28: =tabula!E128 -> 54 | F28: =tabula!F128 -> 149 | G28: =tabula!G128 -> 35 | H28: =tabula!H128 -> 81 | I28: =tabula!I128 -> 84 | J28: =tabula!J128 -> 106 | K28: =tabula!K128 -> -26 | L28: =tabula!L128 -> 135 | M28: =tabula!M128 -> 71 | N28: =tabula!N128 -> 45 | O28: =tabula!O128 -> 734 | P28: =tabula!P128 -> 07 min. 10,167 | Q28: =tabula!Q128 -> 44 | R28: =tabula!R128 -> 09,777 sek.
C29: =tabula!C129 -> 122 | D29: =tabula!D129 -> Siera Kraukšķi | E29: =tabula!E129 -> 93 | F29: =tabula!F129 -> 111 | G29: =tabula!G129 -> 89 | H29: =tabula!H129 -> 43 | I29: =tabula!I129 -> 62 | J29: =tabula!J129 -> 79 | K29: =tabula!K129 -> 69 | L29: =tabula!L129 -> 83 | M29: =tabula!M129 -> 62 | N29: =tabula!N129 -> 43 | O29: =tabula!O129 -> 734 | P29: =tabula!P129 -> 06 min. 53,070 | Q29: =tabula!Q129 -> 44 | R29: =tabula!R129 -> 09,388 sek.
C30: =tabula!C130 -> 123 | D30: =tabula!D130 -> Pernavas iela | E30: =tabula!E130 -> 75 | F30: =tabula!F130 -> 132 | G30: =tabula!G130 -> 76 | H30: =tabula!H130 -> 88 | I30: =tabula!I130 -> 59 | J30: =tabula!J130 -> 54 | K30: =tabula!K130 -> 40 | L30: =tabula!L130 -> 103 | M30: =tabula!M130 -> 83 | N30: =tabula!N130 -> 23 | O30: =tabula!O130 -> 733 | P30: =tabula!P130 -> 09 min. 44,773 | Q30: =tabula!Q130 -> 49 | R30: =tabula!R130 -> 11,934 sek.
C31: =tabula!C131 -> 124 | D31: =tabula!D131 -> Adrija | E31: =tabula!E131 -> 66 | F31: =tabula!F131 -> 107 | G31: =tabula!G131 -> 64 | H31: =tabula!H131 -> 54 | I31: =tabula!I131 -> 63 | J31: =tabula!J131 -> 92 | K31: =tabula!K131 -> 16 | L31: =tabula!L131 -> 106 | M31: =tabula!M131 -> 69 | N31: =tabula!N131 -> 90 | O31: =tabula!O131 -> 727 | P31: =tabula!P131 -> 04 min. 38,434 | Q31: =tabula!Q131 -> 39 | R31: =tabula!R131 -> 07,139 sek.
C32: =tabula!C132 -> 125 | D32: =tabula!D132 -> Pilates | E32: =tabula!E132 -> 59 | F32: =tabula!F132 -> 91 | G32: =tabula!G132 -> 75 | H32: =tabula!H132 -> 77 | I32: =tabula!I132 -> 42 | J32: =tabula!J132 -> 81 | K32: =tabula!K132 -> 96 | L32: =tabula!L132 -> 87 | M32: =tabula!M132 -> 53 | N32: =tabula!N132 -> 62 | O32: =tabula!O132 -> 723 | P32: =tabula!P132 -> 06 min. 06,509 | Q32: =tabula!Q132 -> 41 | R32: =tabula!R132 -> 08,939 sek.
C33: =tabula!C133 -> 126 | D33: =tabula!D133 -> FLINSTONU ĢIMENE & TAPS AUTO | E33: =tabula!E133 -> 72 | F33: =tabula!F133 -> 116 | G33: =tabula!G133 -> 60 | H33: =tabula!H133 -> 46 | I33: =tabula!I133 -> 54 | J33: =tabula!J133 -> 66 | K33: =tabula!K133 -> 69 | L33: =tabula!L133 -> 113 | M33: =tabula!M133 -> 78 | N33: =tabula!N133 -> 46 | O33: =tabula!O133 -> 720 | P33: =tabula!P133 -> 08 min. 15,096 | Q33: =tabula!Q133 -> 44 | R33: =tabula!R133 -> 11,252 sek.
C34: =tabula!C134 -> 127 | D34: =tabula!D134 -> DDKAI | E34: =tabula!E134 -> 66 | F34: =tabula!F134 -> 132 | G34: =tabula!G134 -> 76 | H34: =tabula!H134 -> 35 | I34: =tabula!I134 -> 79 | J34: =tabula!J134 -> 66 | K34: =tabula!K134 -> -16 | L34: =tabula!L134 -> 115 | M34: =tabula!M134 -> 80 | N34: =tabula!N134 -> 87 | O34: =tabula!O134 -> 720 | P34: =tabula!P134 -> 06 min. 33,091 | Q34: =tabula!Q134 -> 43 | R34: =tabula!R134 -> 09,142 sek.
C35: =tabula!C135 -> 128 | D35: =tabula!D135 -> Gorillaz | E35: =tabula!E135 -> 70 | F35: =tabula!F135 -> 120 | G35: =tabula!G135 -> 19 | H35: =tabula!H135 -> 72 | I35: =tabula!I135 -> 46 | J35: =tabula!J135 -> 93 | K35: =tabula!K135 -> 64 | L35: =tabula!L135 -> 81 | M35: =tabula!M135 -> 99 | N35: =tabula!N135 -> 55 | O35: =tabula!O135 -> 719 | P35: =tabula!P135 -> 06 min. 25,127 | Q35: =tabula!Q135 -> 43 | R35: =tabula!R135 -> 08,956 sek.
C36: =tabula!C136 -> 129 | D36: =tabula!D136 -> Krūmiņi | E36: =tabula!E136 -> 56 | F36: =tabula!F136 -> 124 | G36: =tabula!G136 -> 41 | H36: =tabula!H136 -> 59 | I36: =tabula!I136 -> 73 | J36: =tabula!J136 -> 62 | K36: =tabula!K136 -> 60 | L36: =tabula!L136 -> 131 | M36: =tabula!M136 -> 23 | N36: =tabula!N136 -> 78 | O36: =tabula!O136 -> 707 | P36: =tabula!P136 -> 07 min. 05,711 | Q36: =tabula!Q136 -> 43 | R36: =tabula!R136 -> 09,900 sek.
C37: =tabula!C137 -> 130 | D37: =tabula!D137 -> Ozolu gatve | E37: =tabula!E137 -> 37 | F37: =tabula!F137 -> 138 | G37: =tabula!G137 -> 42 | H37: =tabula!H137 -> 57 | I37: =tabula!I137 -> 62 | J37: =tabula!J137 -> 83 | K37: =tabula!K137 -> 107 | L37: =tabula!L137 -> 100 | M37: =tabula!M137 -> 54 | N37: =tabula!N137 -> 23 | O37: =tabula!O137 -> 703 | P37: =tabula!P137 -> 05 min. 30,103 | Q37: =tabula!Q137 -> 40 | R37: =tabula!R137 -> 08,253 sek.
C38: =tabula!C138 -> 131 | D38: =tabula!D138 -> SMUKIE | E38: =tabula!E138 -> 59 | F38: =tabula!F138 -> 162 | G38: =tabula!G138 -> 87 | H38: =tabula!H138 -> 37 | I38: =tabula!I138 -> 57 | J38: =tabula!J138 -> 98 | K38: =tabula!K138 -> 47 | L38: =tabula!L138 -> 107 | M38: =tabula!M138 -> 28 | N38: =tabula!N138 -> 21 | O38: =tabula!O138 -> 703 | P38: =tabula!P138 -> 04 min. 23,828 | Q38: =tabula!Q138 -> 38 | R38: =tabula!R138 -> 06,943 sek.
C39: =tabula!C139 -> 132 | D39: =tabula!D139 -> TingalTangel | E39: =tabula!E139 -> 79 | F39: =tabula!F139 -> 135 | G39: =tabula!G139 -> 58 | H39: =tabula!H139 -> 33 | I39: =tabula!I139 -> 55 | J39: =tabula!J139 -> 104 | K39: =tabula!K139 -> 75 | L39: =tabula!L139 -> 68 | M39: =tabula!M139 -> 71 | N39: =tabula!N139 -> 21 | O39: =tabula!O139 -> 699 | P39: =tabula!P139 -> 04 min. 53,854 | Q39: =tabula!Q139 -> 39 | R39: =tabula!R139 -> 07,535 sek.
C40: =tabula!C140 -> 133 | D40: =tabula!D140 -> Liepājas menciņi | E40: =tabula!E140 -> 94 | F40: =tabula!F140 -> 92 | G40: =tabula!G140 -> 62 | H40: =tabula!H140 -> 30 | I40: =tabula!I140 -> 80 | J40: =tabula!J140 -> 85 | K40: =tabula!K140 -> -21 | L40: =tabula!L140 -> 127 | M40: =tabula!M140 -> 124 | N40: =tabula!N140 -> 7 | O40: =tabula!O140 -> 680 | P40: =tabula!P140 -> 06 min. 52,244 | Q40: =tabula!Q140 -> 42 | R40: =tabula!R140 -> 09,815 sek.
C41: =tabula!C141 -> 134 | D41: =tabula!D141 -> pepsi's ir | E41: =tabula!E141 -> 94 | F41: =tabula!F141 -> 107 | G41: =tabula!G141 -> 44 | H41: =tabula!H141 -> 55 | I41: =tabula!I141 -> 66 | J41: =tabula!J141 -> 127 | K41: =tabula!K141 -> 32 | L41: =tabula!L141 -> 83 | M41: =tabula!M141 -> 45 | N41: =tabula!N141 -> 20 | O41: =tabula!O141 -> 673 | P41: =tabula!P141 -> 09 min. 13,063 | Q41: =tabula!Q141 -> 44 | R41: =tabula!R141 -> 12,570 sek.
C42: =tabula!C142 -> 135 | D42: =tabula!D142 -> Maija | E42: =tabula!E142 -> 81 | F42: =tabula!F142 -> 107 | G42: =tabula!G142 -> 71 | H42: =tabula!H142 -> 88 | I42: =tabula!I142 -> 23 | J42: =tabula!J142 -> 70 | K42: =tabula!K142 -> -27 | L42: =tabula!L142 -> 91 | M42: =tabula!M142 -> 129 | N42: =tabula!N142 -> 38 | O42: =tabula!O142 -> 671 | P42: =tabula!P142 -> 03 min. 11,495 | Q42: =tabula!Q142 -> 36 | R42: =tabula!R142 -> 05,319 sek.
C43: =tabula!C143 -> 136 | D43: =tabula!D143 -> Sabotieri | E43: =tabula!E143 -> 83 | F43: =tabula!F143 -> 88 | G43: =tabula!G143 -> 87 | H43: =tabula!H143 -> 59 | I43: =tabula!I143 -> 40 | J43: =tabula!J143 -> 61 | K43: =tabula!K143 -> 41 | L43: =tabula!L143 -> 91 | M43: =tabula!M143 -> 60 | N43: =tabula!N143 -> 46 | O43: =tabula!O143 -> 656 | P43: =tabula!P143 -> 08 min. 18,076 | Q43: =tabula!Q143 -> 43 | R43: =tabula!R143 -> 11,583 sek.
C44: =tabula!C144 -> 137 | D44: =tabula!D144 -> marinētie gurķīši | E44: =tabula!E144 -> 48 | F44: =tabula!F144 -> 124 | G44: =tabula!G144 -> 45 | H44: =tabula!H144 -> 58 | I44: =tabula!I144 -> 59 | J44: =tabula!J144 -> 74 | K44: =tabula!K144 -> 70 | L44: =tabula!L144 -> 115 | M44: =tabula!M144 -> 63 | N44: =tabula!N144 -> 0 | O44: =tabula!O144 -> 656 | P44: =tabula!P144 -> 06 min. 32,477 | Q44: =tabula!Q144 -> 39 | R44: =tabula!R144 -> 10,064 sek.
C45: =tabula!C145 -> 138 | D45: =tabula!D145 -> janisvalm | E45: =tabula!E145 -> 100 | F45: =tabula!F145 -> 146 | G45: =tabula!G145 -> 65 | H45: =tabula!H145 -> 73 | I45: =tabula!I145 -> 61 | J45: =tabula!J145 -> 89 | K45: =tabula!K145 -> -92 | L45: =tabula!L145 -> 143 | M45: =tabula!M145 -> 35 | N45: =tabula!N145 -> 22 | O45: =tabula!O145 -> 642 | P45: =tabula!P145 -> 03 min. 17,694 | Q45: =tabula!Q145 -> 36 | R45: =tabula!R145 -> 05,492 sek.
C46: =tabula!C146 -> 139 | D46: =tabula!D146 -> Dzintaram55! | E46: =tabula!E146 -> 102 | F46: =tabula!F146 -> 103 | G46: =tabula!G146 -> 87 | H46: =tabula!H146 -> 53 | I46: =tabula!I146 -> 42 | J46: =tabula!J146 -> 97 | K46: =tabula!K146 -> 9 | L46: =tabula!L146 -> 133 | M46: =tabula!M146 -> 15 | N46: =tabula!N146 -> 0 | O46: =tabula!O146 -> 641 | P46: =tabula!P146 -> 06 min. 36,772 | Q46: =tabula!Q146 -> 39 | R46: =tabula!R146 -> 10,174 sek.
C47: =tabula!C147 -> 140 | D47: =tabula!D147 -> Gulbji Gulbenē | E47: =tabula!E147 -> 30 | F47: =tabula!F147 -> 61 | G47: =tabula!G147 -> 59 | H47: =tabula!H147 -> 35 | I47: =tabula!I147 -> 32 | J47: =tabula!J147 -> 55 | K47: =tabula!K147 -> 80 | L47: =tabula!L147 -> 104 | M47: =tabula!M147 -> 88 | N47: =tabula!N147 -> 81 | O47: =tabula!O147 -> 625 | P47: =tabula!P147 -> 11 min. 30,943 | Q47: =tabula!Q147 -> 45 | R47: =tabula!R147 -> 14,526 sek.
C48: =tabula!C148 -> 141 | D48: =tabula!D148 -> Sardīnes | E48: =tabula!E148 -> 41 | F48: =tabula!F148 -> 97 | G48: =tabula!G148 -> 76 | H48: =tabula!H148 -> 19 | I48: =tabula!I148 -> 40 | J48: =tabula!J148 -> 91 | K48: =tabula!K148 -> 54 | L48: =tabula!L148 -> 108 | M48: =tabula!M148 -> 69 | N48: =tabula!N148 -> 25 | O48: =tabula!O148 -> 620 | P48: =tabula!P148 -> 07 min. 19,725 | Q48: =tabula!Q148 -> 39 | R48: =tabula!R148 -> 11,275 sek.
C49: =tabula!C149 -> 142 | D49: =tabula!D149 -> Cip-cip-cālīši | E49: =tabula!E149 -> 55 | F49: =tabula!F149 -> 110 | G49: =tabula!G149 -> 39 | H49: =tabula!H149 -> 88 | I49: =tabula!I149 -> 46 | J49: =tabula!J149 -> 65 | K49: =tabula!K149 -> -19 | L49: =tabula!L149 -> 123 | M49: =tabula!M149 -> 49 | N49: =tabula!N149 -> 50 | O49: =tabula!O149 -> 606 | P49: =tabula!P149 -> 06 min. 33,490 | Q49: =tabula!Q149 -> 38 | R49: =tabula!R149 -> 10,355 sek.
C50: =tabula!C150 -> 143 | D50: =tabula!D150 -> Asaris | E50: =tabula!E150 -> 40 | F50: =tabula!F150 -> 100 | G50: =tabula!G150 -> 58 | H50: =tabula!H150 -> 58 | I50: =tabula!I150 -> 66 | J50: =tabula!J150 -> 71 | K50: =tabula!K150 -> 92 | L50: =tabula!L150 -> 121 | M50: =tabula!M150 -> 0 | N50: =tabula!N150 -> 0 | O50: =tabula!O150 -> 606 | P50: =tabula!P150 -> 06 min. 02,958 | Q50: =tabula!Q150 -> 36 | R50: =tabula!R150 -> 10,082 sek.
C51: =tabula!C151 -> 144 | D51: =tabula!D151 -> Vēja Pilsētas Prāti | E51: =tabula!E151 -> 59 | F51: =tabula!F151 -> 94 | G51: =tabula!G151 -> 20 | H51: =tabula!H151 -> 0 | I51: =tabula!I151 -> 43 | J51: =tabula!J151 -> 79 | K51: =tabula!K151 -> 37 | L51: =tabula!L151 -> 126 | M51: =tabula!M151 -> 84 | N51: =tabula!N151 -> 45 | O51: =tabula!O151 -> 587 | P51: =tabula!P151 -> 06 min. 05,283 | Q51: =tabula!Q151 -> 36 | R51: =tabula!R151 -> 10,147 sek.
C52: =tabula!C152 -> 145 | D52: =tabula!D152 -> Pilskalni | E52: =tabula!E152 -> 72 | F52: =tabula!F152 -> 158 | G52: =tabula!G152 -> 21 | H52: =tabula!H152 -> 0 | I52: =tabula!I152 -> 0 | J52: =tabula!J152 -> 62 | K52: =tabula!K152 -> -1 | L52: =tabula!L152 -> 138 | M52: =tabula!M152 -> 103 | N52: =tabula!N152 -> 34 | O52: =tabula!O152 -> 587 | P52: =tabula!P152 -> 04 min. 51,467 | Q52: =tabula!Q152 -> 35 | R52: =tabula!R152 -> 07,446 sek.
C53: =tabula!C153 -> 146 | D53: =tabula!D153 -> GaraisGads | E53: =tabula!E153 -> 83 | F53: =tabula!F153 -> 169 | G53: =tabula!G153 -> 117 | H53: =tabula!H153 -> 82 | I53: =tabula!I153 -> 107 | J53: =tabula!J153 -> 41 | K53: =tabula!K153 -> -28 | L53: =tabula!L153 -> 0 | M53: =tabula!M153 -> 0 | N53: =tabula!N153 -> 0 | O53: =tabula!O153 -> 571 | P53: =tabula!P153 -> 04 min. 19,718 | Q53: =tabula!Q153 -> 33 | R53: =tabula!R153 -> 07,870 sek.
C54: =tabula!C154 -> 147 | D54: =tabula!D154 -> Svimpīši@mežiņas | E54: =tabula!E154 -> 80 | F54: =tabula!F154 -> 133 | G54: =tabula!G154 -> 40 | H54: =tabula!H154 -> 53 | I54: =tabula!I154 -> 47 | J54: =tabula!J154 -> 44 | K54: =tabula!K154 -> -4 | L54: =tabula!L154 -> 105 | M54: =tabula!M154 -> 17 | N54: =tabula!N154 -> 51 | O54: =tabula!O154 -> 566 | P54: =tabula!P154 -> 10 min. 09,176 | Q54: =tabula!Q154 -> 41 | R54: =tabula!R154 -> 14,858 sek.
C55: =tabula!C155 -> 148 | D55: =tabula!D155 -> Too Hot To Win | E55: =tabula!E155 -> 0 | F55: =tabula!F155 -> 85 | G55: =tabula!G155 -> 0 | H55: =tabula!H155 -> 0 | I55: =tabula!I155 -> 0 | J55: =tabula!J155 -> 30 | K55: =tabula!K155 -> 103 | L55: =tabula!L155 -> 117 | M55: =tabula!M155 -> 109 | N55: =tabula!N155 -> 108 | O55: =tabula!O155 -> 552 | P55: =tabula!P155 -> 03 min. 35,258 | Q55: =tabula!Q155 -> 30 | R55: =tabula!R155 -> 07,175 sek.
C56: =tabula!C156 -> 149 | D56: =tabula!D156 -> Agnese | E56: =tabula!E156 -> 78 | F56: =tabula!F156 -> 106 | G56: =tabula!G156 -> 32 | H56: =tabula!H156 -> 53 | I56: =tabula!I156 -> 41 | J56: =tabula!J156 -> 63 | K56: =tabula!K156 -> -28 | L56: =tabula!L156 -> 86 | M56: =tabula!M156 -> 81 | N56: =tabula!N156 -> 12 | O56: =tabula!O156 -> 524 | P56: =tabula!P156 -> 03 min. 39,666 | Q56: =tabula!Q156 -> 31 | R56: =tabula!R156 -> 07,086 sek.
C57: =tabula!C157 -> 150 | D57: =tabula!D157 -> Acālija | E57: =tabula!E157 -> 22 | F57: =tabula!F157 -> 141 | G57: =tabula!G157 -> 65 | H57: =tabula!H157 -> 77 | I57: =tabula!I157 -> 47 | J57: =tabula!J157 -> 0 | K57: =tabula!K157 -> 48 | L57: =tabula!L157 -> 38 | M57: =tabula!M157 -> 62 | N57: =tabula!N157 -> 21 | O57: =tabula!O157 -> 521 | P57: =tabula!P157 -> 06 min. 04,518 | Q57: =tabula!Q157 -> 33 | R57: =tabula!R157 -> 11,046 sek.
C58: =tabula!C158 -> 151 | D58: =tabula!D158 -> Sestdieņi | E58: =tabula!E158 -> 36 | F58: =tabula!F158 -> 0 | G58: =tabula!G158 -> 38 | H58: =tabula!H158 -> 36 | I58: =tabula!I158 -> 68 | J58: =tabula!J158 -> 63 | K58: =tabula!K158 -> 60 | L58: =tabula!L158 -> 109 | M58: =tabula!M158 -> 42 | N58: =tabula!N158 -> 68 | O58: =tabula!O158 -> 520 | P58: =tabula!P158 -> 05 min. 31,260 | Q58: =tabula!Q158 -> 30 | R58: =tabula!R158 -> 11,042 sek.
C59: =tabula!C159 -> 152 | D59: =tabula!D159 -> Džunāri | E59: =tabula!E159 -> 100 | F59: =tabula!F159 -> 172 | G59: =tabula!G159 -> 97 | H59: =tabula!H159 -> 52 | I59: =tabula!I159 -> 68 | J59: =tabula!J159 -> 42 | K59: =tabula!K159 -> -24 | L59: =tabula!L159 -> 0 | M59: =tabula!M159 -> 0 | N59: =tabula!N159 -> 0 | O59: =tabula!O159 -> 507 | P59: =tabula!P159 -> 03 min. 53,350 | Q59: =tabula!Q159 -> 30 | R59: =tabula!R159 -> 07,778 sek.
C60: =tabula!C160 -> 153 | D60: =tabula!D160 -> Gurmani | E60: =tabula!E160 -> 58 | F60: =tabula!F160 -> 114 | G60: =tabula!G160 -> 9 | H60: =tabula!H160 -> 34 | I60: =tabula!I160 -> 38 | J60: =tabula!J160 -> 52 | K60: =tabula!K160 -> 11 | L60: =tabula!L160 -> 68 | M60: =tabula!M160 -> 51 | N60: =tabula!N160 -> 12 | O60: =tabula!O160 -> 447 | P60: =tabula!P160 -> 07 min. 07,525 | Q60: =tabula!Q160 -> 33 | R60: =tabula!R160 -> 12,955 sek.
C61: =tabula!C161 -> 154 | D61: =tabula!D161 -> Virsskaņas alus iznīcinātājs | E61: =tabula!E161 -> 41 | F61: =tabula!F161 -> 118 | G61: =tabula!G161 -> 66 | H61: =tabula!H161 -> 98 | I61: =tabula!I161 -> 92 | J61: =tabula!J161 -> 0 | K61: =tabula!K161 -> 0 | L61: =tabula!L161 -> 0 | M61: =tabula!M161 -> 0 | N61: =tabula!N161 -> 0 | O61: =tabula!O161 -> 415 | P61: =tabula!P161 -> 02 min. 51,644 | Q61: =tabula!Q161 -> 23 | R61: =tabula!R161 -> 07,463 sek.
C62: =tabula!C162 -> 155 | D62: =tabula!D162 -> Smilgāji | E62: =tabula!E162 -> 95 | F62: =tabula!F162 -> 135 | G62: =tabula!G162 -> 56 | H62: =tabula!H162 -> 0 | I62: =tabula!I162 -> 0 | J62: =tabula!J162 -> 0 | K62: =tabula!K162 -> 73 | L62: =tabula!L162 -> 0 | M62: =tabula!M162 -> 0 | N62: =tabula!N162 -> 0 | O62: =tabula!O162 -> 359 | P62: =tabula!P162 -> 02 min. 11,986 | Q62: =tabula!Q162 -> 21 | R62: =tabula!R162 -> 06,285 sek.
C63: =tabula!C163 -> 156 | D63: =tabula!D163 -> Sigma | E63: =tabula!E163 -> 100 | F63: =tabula!F163 -> 87 | G63: =tabula!G163 -> 0 | H63: =tabula!H163 -> 0 | I63: =tabula!I163 -> 0 | J63: =tabula!J163 -> 0 | K63: =tabula!K163 -> 0 | L63: =tabula!L163 -> 0 | M63: =tabula!M163 -> 0 | N63: =tabula!N163 -> 0 | O63: =tabula!O163 -> 187 | P63: =tabula!P163 -> 02 min. 09,174 | Q63: =tabula!Q163 -> 13 | R63: =tabula!R163 -> 09,936 sek.
C64: =tabula!C164 -> 157 | D64: =tabula!D164 -> Ēzelis | E64: =tabula!E164 -> 0 | F64: =tabula!F164 -> 40 | G64: =tabula!G164 -> 0 | H64: =tabula!H164 -> 0 | I64: =tabula!I164 -> 0 | J64: =tabula!J164 -> 22 | K64: =tabula!K164 -> -33 | L64: =tabula!L164 -> 0 | M64: =tabula!M164 -> 0 | N64: =tabula!N164 -> 0 | O64: =tabula!O164 -> 29 | P64: =tabula!P164 -> 00 min. 24,403 | Q64: =tabula!Q164 -> 4 | R64: =tabula!R164 -> 06,101 sek.
C66: LIELDRAUGS ATBALSTĪTĀJI

Sheet raundi
B2: =CONCATENATE(tabula!C2," --> Raundu uzvarētāji") -> "Ģimeņu viktorīna" (tiešsaistē / vebinārā) | 2025.gada 22.februāris --> Raundu uzvarētāji
B3: # | C3: Raunda nosaukums | D3: Dalībnieks | E3: Rezultāts | F3: AVG | G3: MAX | H3: % no max
B4: 1 | C4: =TRANSPOSE(tabula!E4:N4) -> Pavediens | D4: pienazupa | E4: 137 | F4: =TRANSPOSE(tabula!E7:N7) -> 76.7 | G4: =TRANSPOSE(tabula!E5:N5) -> 150 | H4: =E4/G4 -> 0.9133333333
B5: 2 | C5: Ekspresis | D5: Pierīgas Kalniņi | E5: 201 | F5: 130.6 | G5: 240 | H5: =E5/G5 -> 0.8375
B6: 3 | C6: Vizuālais | D6: ROGAS | E6: 134 | F6: 73.5 | G6: 150 | H6: 0.8933333333
B7: 4 | C7: Burtu mīkla | D7: EVER PUB | E7: 109 | F7: 67.5 | G7: 162 | H7: 0.6728395062
B8: 5 | C8: Ķēde | D8: Salaspils Zīriņi | E8: 132 | F8: 70.1 | G8: 150 | H8: 0.88
B9: 6 | C9: Latviešu filmas no viena kadra | D9: Tagad zinu - ko nezināju! | E9: 141 | F9: 88.8 | G9: 150 | H9: 0.94
B10: 7 | C10: Risks | D10: Sindija DJV | E10: 111 | F10: 56.4 | G10: 120 | H10: 0.925
B11: 8 | C11: Kas kopīgs? | D11: Andris un divi Voltēri | E11: 190 | F11: 124.4 | G11: 180 | H11: 1.055555556
B12: 9 | C12: Liekais pazūd | D12: Umpalumpas | E12: 131 | F12: 83.2 | G12: 132 | H12: 0.9924242424
B13: 10 | C13: Audio | D13: Just80% | E13: 141 | F13: 79.1 | G13: 150 | H13: 0.94
B14: - | C14: Uzvarētājs | E14: =tabula!O8 -> 1289 | F14: =tabula!O7 -> 850.2 | G14: =SUM(G4:G13) -> 1584 | H14: =E14/G14 -> 0.8137626263
C15: =tabula!D8 -> ROGAS
B17: LIELDRAUGS ATBALSTĪTĀJI
